Cogmind - Beta 16 @@@ ROGUE MODE // 2025.12.12 @ 14:56:32 Player: C0-2MO Result: Escaped! Performance ------------- Evolutions (9) 4500 Regions Visited (29) 5800 Robots Destroyed (875) 4375 Value Destroyed (39020) 39020 Prototype IDs (78) 1560 Alien Tech Used (0) 0 Bonus (17116) 17116 TOTAL SCORE: 72371 Bonus ------- High Alert Combat Kills 5766 Follower Combat Kills 641 Destroyed Unchained 2000 Entered Garrisons 1600 Used RIF Installer 4000 Aligned with FarCom 300 Win 3000 Friendly Fire -191 Cogmind --------- Core Integrity 634/1600 Matter 285/300 Energy 166/170 System Corruption 3% Temperature Cool (8) Movement Flying (32) Location To Epsilon Eridani Parts ------- > --- POWER (3) -------- Light Antimatter Reactor > --- PROPULSION (9) --- Xenon Bombardment Thruster Xenon Bombardment Thruster Field Propulsion Array Impulse Thruster Array > --- UTILITY (10) ----- Structural Scanner (fused) Machine Analyzer Improved Focal Shield System Shield Mini Drone Bay (0/3) > --- WEAPON (3) ------- Heavy Machine Gun Force Lance > --- INVENTORY (5) ---- Quantum Capacitor Enhanced Quantum Rifle Linear Accelerator Peak State ------------ > --- POWER ------------ Reinforced Antimatter Reactor Micro Antimatter Reactor Light Quantum Reactor > --- PROPULSION ------- Flexi-carbon Leg Myomer Leg Myomer Leg Myomer Leg Biometal Leg Biometal Leg Improved Antigrav System > --- UTILITY ---------- Advanced Heat Sink Advanced Heat Sink Advanced Heat Sink Large Storage Unit Advanced Phase Shifter Improved Hacking Suite Advanced Hacking Suite Experimental System Shield Relay Coupler [Grunt] Improved Dynamic Insulation System > --- WEAPON ----------- Phase Gun Phase Gun Advanced Remote Datajack > --- INVENTORY -------- Advanced Heat Sink Advanced Heat Sink Advanced Coolant Injector Launcher Loader Quantum Capacitor Authchip [Weapon] Relay Coupler [NC] Relay Coupler [NC] Relay Coupler [NC] Advanced Trap Extractor Heavy Laser Power Sword [Rating: 154] Favorites ----------- Power Micro Fission Core Engine Backup Power III Power Core Micro Fission Core Reactor Compact Particle Reactor Propulsion Gyrokinetic Inverter Treads Armored Heavy Treads Leg Aluminum Leg Wheel Wheel Hover Unit Gyrokinetic Inverter Flight Unit Improved Cesium-ion Thruster Utility Hacking Suite Device Advanced Cooling System Storage Large Storage Unit Processor Targeting Computer Hackware Hacking Suite Protection Improved Light Armor Plating Weapon Power Sword Energy Gun Phase Gun Energy Cannon Guided Plasma Cannon Ballistic Gun Gauss Rifle Ballistic Cannon Hypervelocity Mass Driver Launcher Guided EMP Blaster Special Weapon Remote Datajack Slashing Weapon Power Sword Piercing Weapon Heavy Pick Special Melee Weapon Advanced Datajack Build | -11 -10 -10 -10 -9 -8 -8 -8 -8 -7 -7 -7 -7 -6 -5 -5 -5 -5 -5 -4 -4 -4 -4 -3 -3 -2 -2 -2 -2 -1 ------- Run | Yrd Mat Min Exi Min Mat Gar Mat Gar Fac Gar Fac Gar Fac Fac Was Fac Upp Upp Fac Gar Fac Arm Res Gar Res Gar Res Gar Acc Slots Evolved 18 | . . . . . 4 . . . 2 . . . 2 2 . . . . 2 . . . 2 . 2 . . . 2 Power 2 | . . . . . . . . . 1 . . . . . . . . . . . . . 1 . . . . . . Propulsion 7 | . . . . . 2 . . . . . . . . 2 . . . . . . . . 1 . . . . . 2 Utility 8 | . . . . . 2 . . . 1 . . . 1 . . . . . 2 . . . . . 2 . . . . Weapon 1 | . . . . . . . . . . . . . 1 . . . . . . . . . . . . . . . . Parts Attached 469 | 4 18 3 . 6 16 3 9 5 2 30 9 7 90 30 1 88 1 . 9 1 33 16 12 1 3 48 1 . 23 Power 62 | . 2 . . 1 1 . 3 2 . 5 2 . 14 4 1 11 . . . . 2 5 1 . 1 5 . . 2 Engine 11 | . 2 . . 1 . . 1 . . . . . 5 1 . 1 . . . . . . . . . . . . . Core 38 | . . . . . 1 . 2 2 . 5 2 . 8 3 . 9 . . . . 2 3 1 . . . . . . Reactor 13 | . . . . . . . . . . . . . 1 . 1 1 . . . . . 2 . . 1 5 . . 2 Propulsion 132 | 2 4 . . 4 7 1 2 . 1 12 1 3 21 8 . 23 . . 2 . 10 2 1 . . 17 . . 11 Treads 2 | . . . . . . . . . . . . . . . . . . . . . . . . . . 2 . . . Leg 47 | 2 3 . . 4 7 1 2 . 1 12 1 3 2 . . . . . . . . . . . . 9 . . . Wheel 1 | . . . . . . . . . . . . . . . . . . . . . . . . . . . . . 1 Hover 64 | . 1 . . . . . . . . . . . 15 7 . 23 . . 2 . 10 2 1 . . 3 . . . Flight 18 | . . . . . . . . . . . . . 4 1 . . . . . . . . . . . 3 . . 10 Utility 179 | . 5 1 . . 5 1 1 2 1 5 5 4 33 10 . 40 1 . 7 1 18 7 8 1 1 15 1 . 6 Device 90 | . . . . . 2 1 . 1 1 3 1 1 17 4 . 26 . . 3 . 8 3 4 . 1 10 . . 4 Storage 12 | . 3 . . . . . . . . . 1 . 2 2 . 2 . . . . . . 2 . . . . . . Processor 11 | . 2 . . . 1 . . . . . . . 2 . . 2 . . . . . 3 . . . . . . 1 Hackware 41 | . . . . . 1 . . 1 . . 1 2 6 2 . 5 1 . 4 1 8 1 2 . . 4 1 . 1 Protection 25 | . . 1 . . 1 . 1 . . 2 2 1 6 2 . 5 . . . . 2 . . 1 . 1 . . . Artifact . | . . . . . . . . . . . . . . . . . . . . . . . . . . . . . . Weapon 96 | 2 7 2 . 1 3 1 3 1 . 8 1 . 22 8 . 14 . . . . 3 2 2 . 1 11 . . 4 Energy Gun 17 | . 1 . . . 1 . . . . 1 . . 1 1 . . . . . . . . . . 1 9 . . 2 Energy Cannon 4 | . . . . 1 . . . . . . . . . . . . . . . . . 2 1 . . . . . . Ballistic Gun 45 | 2 3 1 . . 1 . 3 . . 7 . . 15 5 . 5 . . . . . . 1 . . 1 . . 1 Ballistic Cannon 3 | . 1 . . . . . . . . . . . 1 . . . . . . . 1 . . . . . . . . Launcher 10 | . 1 1 . . 1 . . . . . . . . 1 . 5 . . . . 1 . . . . . . . . Special Weapon 3 | . . . . . . . . . . . 1 . 1 . . . . . . . . . . . . 1 . . . Impact Weapon . | . . . . . . . . . . . . . . . . . . . . . . . . . . . . . . Slashing Weapon 5 | . . . . . . 1 . . . . . . . 1 . 3 . . . . . . . . . . . . . Piercing Weapon 2 | . . . . . . . . . . . . . 1 . . . . . . . . . . . . . . . 1 Special Melee Weapon 7 | . 1 . . . . . . 1 . . . . 3 . . 1 . . . . 1 . . . . . . . . Unidentified Prototypes 27 | . . . . . 1 . . . . . . . 4 3 1 12 . . 1 . 1 . 2 . . . . . 2 Corrupted Parts 1 | . . . . . . . . . . . . . . . . 1 . . . . . . . . . . . . . System Corruption 1 | . . . . . . . . . . . . . . . . 1 . . . . . . . . . . . . . Parts Lost 173 | . 2 . . . . . 6 . . 10 . 5 28 9 . 31 . . . . 6 6 1 4 8 41 . 2 14 Power 32 | . 1 . . . . . 1 . . 2 . 1 9 2 . 6 . . . . . 1 . 1 1 6 . . 1 Propulsion 52 | . . . . . . . 4 . . 3 . 2 6 4 . 9 . . . . 2 1 . . 2 10 . . 9 Utility 57 | . . . . . . . 1 . . 3 . 2 5 2 . 10 . . . . 2 3 1 2 3 17 . 2 4 Weapon 32 | . 1 . . . . . . . . 2 . . 8 1 . 6 . . . . 2 1 . 1 2 8 . . . Highest Loss Streak 21 | . 2 . . . . . 5 . . 4 . 5 8 2 . 5 . . . . 1 1 1 4 6 21 . 2 8 To Critical Strikes 3 | . . . . . . . . . . . . . 1 . . 1 . . . . . . . . . 1 . . . Average Backups 10 | 1 6 10 9 9 9 10 9 9 10 9 12 12 9 11 12 10 11 11 10 12 13 12 10 11 8 8 2 2 2 Power . | . . . . . . . . 1 2 1 1 . . 1 1 . 1 1 1 1 1 1 . . . . . . . Propulsion 1 | . 1 3 3 3 1 2 1 . . . 1 . 1 1 1 1 1 1 1 2 3 1 . . . . . . . Utility 4 | . . . . . 1 3 3 3 3 3 5 6 3 6 6 5 6 6 5 6 5 6 8 9 6 7 2 2 1 Weapon 2 | . 3 6 5 5 4 4 4 4 5 3 4 4 2 1 2 2 2 2 2 2 1 1 1 1 1 . . . 1 Tool/Special . | . . . . . . . . . . . . . . . . . . . . . . . . . . . . . . Unused Backups 27 | . 2 . 1 1 1 . . . . . . 1 5 3 3 1 . . . 1 4 1 . . . 1 . . 2 Power 3 | . . . . . . . . . . . . . 2 1 . . . . . . . . . . . . . . . Propulsion 6 | . . . . . . . . . . . . . 3 1 . 1 . . . . 1 . . . . . . . . Utility 7 | . . . . . . . . . . . . 1 . 1 1 . . . . 1 1 . . . . 1 . . 1 Weapon 10 | . 2 . 1 1 1 . . . . . . . . . 1 . . . . . 2 1 . . . . . . 1 Tool/Special 1 | . . . . . . . . . . . . . . . 1 . . . . . . . . . . . . . . Average Slot Usage (%) 88 | . 82 100 100 94 99 100 96 100 89 95 100 96 89 89 88 89 94 94 89 88 86 87 90 85 73 77 37 34 34 Engine 1 | . 5 14 14 8 7 . . . . . . . 2 . . . . . . . . . . . . . . . . Core 7 | . . . . . 1 9 7 9 7 13 15 15 7 8 10 7 11 11 10 10 10 9 13 13 4 . . . . Leg 8 | . 27 28 28 28 35 36 34 36 30 29 30 29 1 . . . . . . . . . . . . 10 . . . Hover 18 | . . . . . . . . . . . . . 17 24 23 32 35 35 27 26 26 26 27 28 22 12 . . . Device 11 | . . . . . 8 9 9 14 12 12 15 8 9 8 11 14 17 17 15 14 12 17 16 11 16 17 4 2 5 Storage 5 | . 10 14 14 14 9 9 9 9 7 7 7 7 6 5 5 5 5 5 5 5 5 5 4 4 4 3 . . . Hackware 12 | . . . . . 6 9 9 10 15 13 7 12 16 16 17 8 11 11 20 21 19 12 16 14 13 14 20 19 8 Protection 3 | . . 8 14 14 9 8 8 2 . 3 7 7 4 2 . 2 . . . . 1 . . 2 2 1 . . . Ballistic Gun 7 | . 22 26 28 27 16 7 14 4 . 13 8 9 12 12 11 3 . . . . . . 2 2 . . . . 1 Launcher 1 | . . 1 . . . 1 . . . . . . . . . 3 5 5 5 4 3 1 . 1 1 . . . . Slashing Weapon 3 | . . . . . . 9 2 8 7 . 4 1 2 1 5 3 5 5 5 4 4 5 4 4 4 . . . . Peak Build Rating 154 | 4 10 12 13 24 35 34 36 34 39 53 55 55 67 83 89 117 102 102 112 112 120 127 130 132 131 154 51 51 98 Average Rating 77 | 3 6 11 12 16 29 29 30 31 37 42 49 48 57 72 83 94 97 102 106 108 112 114 124 121 107 114 50 47 52 On Entrance 59 | . 4 10 12 12 19 28 29 29 33 39 51 51 41 60 83 84 101 102 102 112 100 113 114 128 101 82 50 51 45 Avg Prop Armor Cover (%) 7 | 22 18 . . . 4 . . . . . . . . 1 . 3 . . 3 . . . . . 1 6 24 24 15 Naked Turns . | . . . . . . . . . . . . . . . . . . . . . . . . . . . . . . Heaviest Build 93 | 3 22 22 22 35 41 37 32 30 26 45 54 55 54 55 49 62 50 50 54 54 74 67 65 72 80 93 1 1 28 Greatest Support 151 | 10 20 20 20 25 54 54 54 52 62 66 66 73 68 67 67 78 54 65 70 70 71 70 80 80 80 151 4 12 61 Greatest Overweight (x) 3 | . 3 1 1 1 1 . . . . . . 1 3 1 . 1 . . . . 1 . . . 1 3 . . 3 Average Overweight (x) . | . . . . . . . . . . . . . . . . . . . . . . . . . . . . . . Largest Inventory Capacity 25 | 5 15 10 10 10 10 10 10 10 10 10 15 15 15 15 15 15 15 15 15 15 15 15 25 15 15 15 5 5 5 Average Capacity 12 | 5 7 10 10 10 10 10 10 10 10 10 13 15 10 13 15 15 15 15 15 15 15 15 15 15 15 13 5 5 5 Most Carried 15 | 3 10 10 10 10 10 10 10 10 10 10 15 15 15 15 15 15 15 15 15 15 15 15 15 15 15 15 5 4 5 Average Carried 11 | 1 6 9 9 9 9 10 9 9 10 9 12 12 9 11 14 14 15 15 14 13 13 14 13 13 11 10 4 4 4 Final Capacity 15 | 5 10 10 10 10 10 10 10 10 10 10 15 15 10 15 15 15 15 15 15 15 15 15 15 15 15 5 5 5 5 Final Carried 15 | 3 10 10 10 10 10 10 9 10 10 10 15 15 10 15 15 15 15 15 15 15 15 15 14 13 9 5 4 4 4 Class Distribution -------------------- 34% | Scavenger-Mutant 31% | Hacker-Mutant 8% | Mutant 7% | Scavenger-Skirmisher 5% | Wizard-Mutant 5% | Scavenger-Sprinter Dominant Class ---------------- Mutant | -10/Materials Scavenger-Mutant | -10/Mines Scavenger-Mutant | -10/Exiles Scavenger-Mutant | -9/Mines Scavenger-Mutant | -8/Materials Scavenger-Mutant | -8/Garrison Mutant | -8/Materials Scavenger-Mutant | -8/Garrison Scavenger-Mutant | -7/Factory Scavenger-Mutant | -7/Garrison Scavenger-Mutant | -7/Factory Mutant | -7/Garrison Scavenger-Mutant | -6/Factory Scavenger-Mutant | -5/Factory Hacker-Mutant | -5/Waste Scavenger-Mutant | -5/Factory Scavenger-Mutant | -5/Upper Caves Scavenger-Mutant | -5/Upper Caves Hacker-Mutant | -4/Factory Hacker-Mutant | -4/Garrison Hacker-Mutant | -4/Factory Hacker-Mutant | -4/Armory Hacker-Mutant | -3/Research Hacker-Mutant | -3/Garrison Hacker-Mutant | -2/Research Scavenger-Skirmisher | -2/Garrison Hacker-Sprinter | -2/Research Hacker-Sprinter | -2/Garrison Scavenger-Scout | -1/Access Resources | -11 -10 -10 -10 -9 -8 -8 -8 -8 -7 -7 -7 -7 -6 -5 -5 -5 -5 -5 -4 -4 -4 -4 -3 -3 -2 -2 -2 -2 -1 ----------- Run | Yrd Mat Min Exi Min Mat Gar Mat Gar Fac Gar Fac Gar Fac Fac Was Fac Upp Upp Fac Gar Fac Arm Res Gar Res Gar Res Gar Acc Matter Collected 28044 | 221 551 30 . 202 799 204 655 172 20 1051 345 463 4775 1138 126 6327 20 . 732 700 5648 2109 192 167 274 933 30 . 160 Remotely 10 | . . . . . . . . . . . . . . . . 10 . . . . . . . . . . . . . Salvage Created 44853 | . 572 . . 260 1175 359 1099 310 . 1219 316 712 6761 2139 . 10321 . . 1343 1556 11212 2728 276 312 395 1511 . . 277 Parts 2112 | . 45 . . 12 74 13 64 11 . 66 14 31 314 131 . 477 . . 81 57 479 112 8 15 22 67 . . 19 Haulers Intercepted 31 | . 1 . . . 2 . . . . . . . 6 5 . 8 . . . . 8 . 1 . . . . . . Recyclers Shooed 29 | . . . . . 1 . 1 . . . . . 8 1 . 12 . . 1 . 5 . . . . . . . . Parts Field Recycled . | . . . . . . . . . . . . . . . . . . . . . . . . . . . . . . Retrieved Matter . | . . . . . . . . . . . . . . . . . . . . . . . . . . . . . . Parts Self-Destructed . | . . . . . . . . . . . . . . . . . . . . . . . . . . . . . . Prevented . | . . . . . . . . . . . . . . . . . . . . . . . . . . . . . . Parts Restored 11 | . . . . . . . . 1 . 2 . . 8 . . . . . . . . . . . . . . . . Broken 11 | . . . . . . . . 1 . 2 . . 8 . . . . . . . . . . . . . . . . Kills | -11 -10 -10 -10 -9 -8 -8 -8 -8 -7 -7 -7 -7 -6 -5 -5 -5 -5 -5 -4 -4 -4 -4 -3 -3 -2 -2 -2 -2 -1 ------- Run | Yrd Mat Min Exi Min Mat Gar Mat Gar Fac Gar Fac Gar Fac Fac Was Fac Upp Upp Fac Gar Fac Arm Res Gar Res Gar Res Gar Acc Combat Hostiles Destroyed 617 | . 16 . . 5 23 6 18 7 . 29 4 12 82 23 . 128 . . 23 24 134 47 . 4 6 21 . . 5 Melee 27 | . . . . . . . . 1 . . . 1 3 1 . 5 . . . . 5 1 . . 1 4 . . 5 Guns 172 | . 13 . . 4 10 . 9 1 . 20 4 6 49 18 . 25 . . . . . . . . . 13 . . . Cannons 79 | . 1 . . 1 8 6 2 5 . 6 . 5 12 . . . . . . . 18 15 . . . . . . . AOE 196 | . 2 . . . 5 . 7 . . 3 . . 18 4 . 61 . . 11 13 48 17 . 2 4 1 . . . Classes Destroyed 22 | . 6 . . 2 5 . . 3 . . . 1 . . . 1 . . . . 2 1 . . . 1 . . . Worker 61 | . 1 . . . 2 . 4 . . . . . 9 7 . 19 . . 2 . 16 . . . 1 . . . . Builder 77 | . . . . . 2 . 1 . . . . . 11 16 . 19 . . 1 . 22 . 1 . 1 . . . 3 Tunneler 4 | . . . . . 1 . . . . . . . . . . 1 . . . . 2 . . . . . . . . Hauler 31 | . 1 . . . 2 . . . . . . . 6 5 . 8 . . . . 8 . 1 . . . . . . Recycler 38 | . . . . . 1 . 3 . . . 1 . 12 2 . 11 . . . . 6 . 1 . 1 . . . . Mechanic 7 | . . . . 1 . . 1 . . . . . . . . 1 . . . . 4 . . . . . . . . Operator 13 | . 1 . . . . . 1 . . . . . 3 1 . 3 . . 1 . 1 2 . . . . . . . Drone 1 | . . . . . . . . . . . . . . . . . . . . . 1 . . . . . . . . Watcher 30 | . 2 . . . 2 . 1 . . . . . 8 3 . 7 . . . . 5 2 . . . . . . . Swarmer 107 | . 6 . . . 7 . 2 . . 10 . . 11 6 . 21 . . 9 4 12 13 . . . 2 . . 4 Cutter 27 | . . . . . . . . 1 . . . . 6 . . 5 . . . 2 4 2 . . 5 2 . . . Saboteur 1 | . . . . . . . . . . . . . . . . . . . . . . 1 . . . . . . . Grunt 228 | . 10 . . 4 9 5 10 4 . 14 . 6 30 7 . 53 . . 4 13 48 . . 2 1 8 . . . Brawler 10 | . . . . . . . . 1 . 1 . . . . . 2 . . 1 . 5 . . . . . . . . Duelist 14 | . . . . 1 . . 1 . . . . . . . . 2 . . 1 2 2 4 . . . 1 . . . Protector 4 | . . . . . . . . . . . . . . . . 1 . . . . 2 1 . . . . . . . Sentry 60 | . . . . . 6 1 5 . . 4 2 1 11 3 . 8 . . 4 3 7 5 . . . . . . . Demolisher 1 | . . . . . . . . . . . . 1 . . . . . . . . . . . . . . . . . Specialist 4 | . . . . . . . . . . . . . . . . . . . . . 2 2 . . . . . . . Hunter 72 | . . . . . 1 . . . . . . 2 11 5 . 13 . . 4 . 25 5 . 2 . 4 . . . Programmer 85 | . . . . . . . . 1 . . 2 2 13 2 . 22 . . . . 26 13 . . . 3 . . 1 Behemoth 1 | . . . . . . . . . . . . . . . . . . . . . . . . . . 1 . . . Best Kill Streak 22 | . 4 . . 3 6 3 16 4 . 4 4 3 5 11 . 14 . . 6 8 22 6 1 2 5 3 . . 2 Combat Bots Only 12 | . 3 . . 2 4 3 9 4 . 4 4 3 4 5 . 12 . . 5 8 12 6 . 2 5 3 . . 2 Max Kills in Single Turn 6 | . 1 . . 1 2 1 3 1 . 3 1 1 3 6 . 5 . . 4 2 5 3 1 1 4 1 . . 1 Gunslinging 1 | . . . . . . . . . . 1 . . . . . . . . . . . . . . . . . . . Exploded 5 | . 1 . . . 1 . 1 . . 3 . . 3 2 . 5 . . 4 2 5 3 . 1 4 1 . . . Melee 1 | . . . . . . . . 1 . . . 1 1 1 . 1 . . . . 1 1 . . 1 1 . . 1 Uniques/NPCs Destroyed 2 | . . . . . . . . . . . . . . . . 1 . . . . . 1 . . . . . . . 6S-H0T (-5/Factory) DW-4LL (-4/Armory) Combat | -11 -10 -10 -10 -9 -8 -8 -8 -8 -7 -7 -7 -7 -6 -5 -5 -5 -5 -5 -4 -4 -4 -4 -3 -3 -2 -2 -2 -2 -1 -------- Run | Yrd Mat Min Exi Min Mat Gar Mat Gar Fac Gar Fac Gar Fac Fac Was Fac Upp Upp Fac Gar Fac Arm Res Gar Res Gar Res Gar Acc Hostile Shots Fired 2666 | . 86 2 . 8 51 . 122 8 . 279 113 69 543 145 . 293 17 8 6 7 277 103 . 27 45 290 2 16 149 Missed 1021 | . 28 2 . 1 9 . 38 2 . 118 49 18 185 55 . 87 9 5 2 2 171 63 . 11 9 75 2 10 70 Hits 1645 | . 58 . . 7 42 . 84 6 . 161 64 51 358 90 . 206 8 3 4 5 106 40 . 16 36 215 . 6 79 Melee 53 | . . . . 2 . . 2 . . . . . . . . 11 . . . . . . . . 28 10 . . . Projectile 1592 | . 58 . . 5 42 . 82 6 . 161 64 51 358 90 . 195 8 3 4 5 106 40 . 16 8 205 . 6 79 AOE 16 | . . 1 . . . . . 1 . . . 4 5 . . 2 . . . . 1 2 . . . . . . . Critical Strikes 88 | . . 1 . . 1 . 3 . . 1 1 2 8 2 . 29 . . . . 8 3 . . 15 14 . . . Actively Blocked 25 | . . . . . . . . . . . . . . . . 6 . . . . . . . . 15 4 . . . Part Disruptions 4 | . . . . . . . . . . . . 1 . . . . . . . . 1 . . . . 1 . . 1 Actively Blocked 1 | . . . . . . . . . . . . . . . . . . . . . . . . . . 1 . . . Damage Taken 28317 | . 604 67 . 140 575 . 1129 141 . 1519 351 753 5919 1464 . 4333 81 57 77 94 1927 860 . 396 1339 4414 . 135 1942 Core 5115 | . 115 . . 42 29 . 173 . . 269 42 11 846 94 . 807 25 20 . . 229 64 . 46 377 916 . 44 966 Absorbed by Shields 1920 | . . . . . . . . . . 436 160 101 . . . . . . . . . . . . . 1223 . . . Reduced by Siege Mode 28 | . . . . . . . . . . . . . . . . . . . . . . . . . . 28 . . . Redirected to Shielding 415 | . . . . . . . . . . . . . . . . 249 . . . . . . . 38 64 64 . . . Ignored by Resistances 75 | . . . . . . . . . . . . . . 51 . . . . . . . . . . . . . . 24 Regen/Repaired (Parts) 2279 | . 51 . . . . . 63 . 27 . 19 93 989 . . 198 . . 95 . 486 . 258 . . . . . . Core Remaining (%) 47 | 100 . . . 37 . . . 63 . . . 54 . . . . . 5 . . . 74 . 96 . . . 7 39 Volleys Fired 2109 | . 57 . . 19 104 14 61 25 . 97 14 51 339 61 . 403 . . 60 65 381 207 . 20 12 113 . . 6 Largest 3 | . 2 . . 2 2 1 2 2 . 2 2 2 3 3 . 3 . . 1 1 1 1 . 2 1 3 . . 1 Hottest 245 | . 80 . . 120 120 120 120 120 . 120 66 120 120 100 . 105 . . 50 50 56 120 . 89 50 245 . . 94 Shots Fired 3030 | . 114 . . 33 147 14 111 27 . 156 28 76 676 165 . 529 . . 60 65 380 207 . 26 12 198 . . 6 Gun 1711 | . 108 . . 28 88 . 92 6 . 136 28 56 556 160 . 255 . . . . . . . 6 2 184 . . 6 Cannon 480 | . 4 . . 5 55 14 11 21 . 18 . 14 101 . . . . . . . 90 141 . 6 . . . . . Launcher 813 | . 2 . . . 4 . 8 . . 2 . . 13 5 . 274 . . 60 65 290 66 . 14 10 . . . . Special 26 | . . . . . . . . . . . . 6 6 . . . . . . . . . . . . 14 . . . Kinetic 1710 | . 88 . . 28 88 . 92 6 . 136 28 56 556 160 . 255 . . . . 90 84 . 12 2 29 . . . Thermal 468 | . 24 . . 5 55 14 11 21 . 18 . 14 101 . . . . . . . . 57 . . . 142 . . 6 Explosive 75 | . 2 . . . 4 . 8 . . 2 . . 13 5 . 18 . . 2 . 21 . . . . . . . . Electromagnetic 751 | . . . . . . . . . . . . . . . . 256 . . 58 65 269 66 . 14 10 13 . . . Robot Hit Streak 22 | . 20 . . 8 8 . 11 2 . 16 7 7 22 14 . 17 . . 8 . 14 18 . 6 7 15 . . 13 Robot Miss Streak 7 | . 3 . . 2 3 . 6 1 . 4 3 7 5 7 . 7 . . . . 6 3 . 3 . 4 . . 1 Penetration Max 2 | . . . . . . . 1 . . 1 1 1 1 2 . 2 . . . . 1 1 . . . . . . . Secondary Targets 20 | . 3 . . 1 1 . . . . 3 1 1 8 1 . . . . . . . . . . . 1 . . . Max Gunslinging Chain 1 | . 1 . . 1 1 . . . . 1 1 1 1 1 . . . . . . . . . . . 1 . . . Capacitor 52 | . . . . . . . . . . . . . . . . . . . . . . 52 . . . . . . . Shots Hit Robots 1623 | . 79 . . 22 59 1 61 4 3 100 18 37 421 139 . 240 . . 8 3 140 98 3 7 8 153 . . 19 Core Hits 1525 | . 34 . . 10 47 7 43 9 . 53 9 21 251 88 . 345 . . 39 50 345 83 2 10 22 49 . . 8 Critical Kills 55 | . . . . . . . . . . 2 2 . 3 5 . 19 . . . . 17 7 . . . . . . . Critical Parts Destroyed 97 | . . . . . 2 . 1 . . 5 . 1 8 4 . 32 . . . . 25 18 . 1 . . . . . Critical Strikes 199 | . 2 . . . 2 . 1 . . 7 2 1 21 11 . 62 . . . . 46 32 . 2 . 7 . . 3 Burn 5 | . 1 . . . . . . . . . . . . . . . . . . . . . . . . 4 . . . Destroy 165 | . . . . . 2 . 1 . . 7 2 1 12 9 . 56 . . . . 42 31 . 2 . . . . . Blast 2 | . 1 . . . . . . . . . . . . . . 1 . . . . . . . . . . . . . Corrupt 1 | . . . . . . . . . . . . . . . . . . . . . . . . . . 1 . . . Sever 22 | . . . . . . . . . . . . . 9 1 . 5 . . . . 4 1 . . . 2 . . . Impale 4 | . . . . . . . . . . . . . . 1 . . . . . . . . . . . . . . 3 Melee Attacks 745 | . . . . . . 27 4 14 7 5 11 8 118 64 . 158 5 . 9 22 155 48 16 2 20 18 . . 34 Impact . | . . . . . . . . . . . . . . . . . . . . . . . . . . . . . . Slashing 663 | . . . . . . 27 4 14 7 . 11 8 108 57 . 156 5 . 9 19 134 48 16 2 20 18 . . . Piercing 45 | . . . . . . . . . . . . . 6 5 . . . . . . . . . . . . . . 34 Sneak Attacks 128 | . . . . . . . 2 . 2 5 1 1 28 13 . 29 . . 1 1 33 2 3 . 4 2 . . 1 Combat Hostiles 5 | . . . . . . . . . . . . . 1 1 . 1 . . . . . . . . . 2 . . . Follow-up Attacks . | . . . . . . . . . . . . . . . . . . . . . . . . . . . . . . Damage Inflicted 98853 | . 1133 . . 493 3027 546 2594 815 164 3265 621 1319 16178 6870 . 20803 . . 2752 2523 22496 5963 273 659 1586 3978 . . 795 Guns 23549 | . 865 . . 336 892 . 1192 78 . 2339 548 772 7738 2775 . 2471 . . . . . . . 132 25 3269 . . 117 Cannons 11731 | . 55 . . 153 1586 478 400 694 . 635 . 357 3406 . . . . . . . 1340 2554 . 73 . . . . . Explosions 46052 | . 204 . . . 549 . 833 . . 291 . . 1863 2081 . 13413 . . 2656 2523 17260 2812 . 454 1113 . . . . Melee 17452 | . . . . . . 68 136 43 164 . 73 190 3148 2014 . 4919 . . 96 . 3896 597 273 . 448 709 . . 678 Ramming 69 | . 9 . . 4 . . 33 . . . . . 23 . . . . . . . . . . . . . . . . Kinetic 22935 | . 715 . . 336 892 . 1192 78 . 2339 548 772 7738 2775 . 2471 . . . . 1340 997 . 205 25 512 . . . Thermal 17021 | . 205 . . 153 1586 478 400 694 . 635 . 357 3683 176 . 1290 . . 350 166 1957 1972 . 42 232 2528 . . 117 Explosive 12439 | . 204 . . . 399 . 833 . . 291 . . 1421 1905 . 2950 . . 553 . 3599 . . . 284 . . . . Electromagnetic 28937 | . . . . . 150 . . . . . . . 165 . . 9173 . . 1753 2357 11704 2397 . 412 597 229 . . . Impact . | . . . . . . . . . . . . . . . . . . . . . . . . . . . . . . Slashing 16642 | . . . . . . 68 136 43 164 . 73 190 3148 1882 . 4919 . . 96 . 3896 597 273 . 448 709 . . . Piercing 810 | . . . . . . . . . . . . . . 132 . . . . . . . . . . . . . . 678 Highest Corruption 19 | . . . . . 3 3 3 5 . . 1 9 3 1 . 19 . . . . 9 8 . . . 9 9 9 3 Average Corruption 3 | . . . . . 3 3 3 4 . . 1 7 1 1 . 6 . . . . 4 4 . . . 1 9 9 1 Corruption Purged 54 | . . . . . . . . . . . . . 6 1 . 30 . . . . 17 . . . . . . . . Corruption Blocked . | . . . . . . . . . . . . . . . . . . . . . . . . . . . . . . Effects 315 | . . . . . 17 5 13 6 . . 3 21 37 1 . 69 . . . . 83 37 . . . 15 1 3 4 Message Errors 69 | . . . . . 6 1 6 . . . . 4 7 . . 12 . . . . 21 8 . . . 2 . 1 1 Matter Fused 66 | . . . . . 4 1 1 1 . . . 1 9 . . 18 . . . . 23 5 . . . 3 . . . Heat Flow Errors 34 | . . . . . 1 1 . 1 . . 2 5 7 . . 5 . . . . 7 4 . . . . . 1 . Energy Discharges 44 | . . . . . 2 . 2 1 . . 1 4 5 1 . 8 . . . . 10 6 . . . 3 . . 1 Parts Rejected 3 | . . . . . . . . . . . . 1 . . . . . . . . 1 . . . . 1 . . . Parts Fused 8 | . . . . . . 1 . . . . . . 1 . . 3 . . . . 2 . . . . . . . 1 Data Loss (minor) 50 | . . . . . . 1 1 2 . . . 3 5 . . 13 . . . . 11 9 . . . 3 . 1 1 Data Loss (major) 17 | . . . . . 3 . 3 1 . . . . . . . 3 . . . . 5 . . . . 1 1 . . Misfires 5 | . . . . . . . . . . . . 1 1 . . . . . . . . 2 . . . 1 . . . Alerts 8 | . . . . . . . . . . . . 1 2 . . 1 . . . . 2 1 . . . 1 . . . Weapon Failures 11 | . . . . . 1 . . . . . . 1 . . . 6 . . . . 1 2 . . . . . . . Overload Shots . | . . . . . . . . . . . . . . . . . . . . . . . . . . . . . . Overflow Damage 4092 | . . . . . 50 . 78 . 23 39 . . 555 482 . 1021 . . 119 . 1118 264 55 . 163 2 . . 123 Projectiles 296 | . . . . . 21 . 5 . . 14 . . 82 . . . . . . . 23 151 . . . . . . . Explosions 1244 | . . . . . 29 . 7 . . 25 . . 82 89 . 325 . . 63 . 523 9 . . 63 . . . 29 Melee 2552 | . . . . . . . 66 . 23 . . . 391 393 . 696 . . 56 . 572 104 55 . 100 2 . . 94 Knockbacks 17 | . . . . . . . 1 . . . . . . . . . . . . . 8 8 . . . . . . . Impact 1 | . . . . . . . 1 . . . . . . . . . . . . . . . . . . . . . . Kinetic 16 | . . . . . . . . . . . . . . . . . . . . . 8 8 . . . . . . . Secondary . | . . . . . . . . . . . . . . . . . . . . . . . . . . . . . . Self-Inflicted Damage 486 | . 12 . . . 8 . 20 . . . . . 125 . . 8 . . 9 . 7 . . . 184 . . . 113 Shots 15 | . 1 . . . 1 . 2 . . . . . 3 . . 1 . . 1 . 2 . . . 3 . . . 1 Rammed 1 | . . . . . . . . . . . . . 1 . . . . . . . . . . . . . . . . Targets Rammed 6 | . 1 . . 1 . . 2 . . . . . 2 . . . . . . . . . . . . . . . . Kicked 5 | . 1 . . 1 . . 2 . . . . . 1 . . . . . . . . . . . . . . . . Crushed . | . . . . . . . . . . . . . . . . . . . . . . . . . . . . . . Highest Temperature 386 | . 54 . . 199 336 324 216 308 . 336 260 384 386 364 . 301 . 7 2 21 259 321 4 160 63 192 . 181 259 Average Temperature 74 | . 14 . . 81 106 134 78 137 . 108 69 121 83 100 . 46 . 7 2 8 48 93 4 57 23 49 . 108 85 Received Heat Transfer 3695 | . 210 . . 45 243 . 468 12 . 588 40 54 810 279 . 213 12 27 9 9 141 9 . 27 27 427 . 27 18 Effects 26 | . . . . . 4 1 . . . . 2 6 8 4 . 1 . . . . . . . . . . . . . Shutdowns 2 | . . . . . . . . . . . . . 1 1 . . . . . . . . . . . . . . . Energy Bleed 5 | . . . . . 2 . . . . . . 1 2 . . . . . . . . . . . . . . . . Interference 18 | . . . . . 2 . . . . . 2 5 5 3 . 1 . . . . . . . . . . . . . Damage (minor) 1 | . . . . . . 1 . . . . . . . . . . . . . . . . . . . . . . . Siege Activations 1 | . . . . . . . . . . . . . . . . . . . . . . . . . . 1 . . . Total Turns 19 | . . . . . . . . . . . . . . . . . . . . . . . . . . 19 . . . Longest Duration 19 | . . . . . . . . . . . . . . . . . . . . . . . . . . 19 . . . Martial Activations . | . . . . . . . . . . . . . . . . . . . . . . . . . . . . . . Shielding Activations . | . . . . . . . . . . . . . . . . . . . . . . . . . . . . . . Robots Disrupted 6 | . . . . . . . . . . . . . . . . 2 . . . 1 1 1 . . 1 . . . . Combat Hostiles 6 | . . . . . . . . . . . . . . . . 2 . . . 1 1 1 . . 1 . . . . Robots Corrupted 145 | . . . . . . . . . . . . . . . . 37 . . 12 11 66 14 . 2 1 2 . . . Combat Hostiles 142 | . . . . . . . . . . . . . . . . 37 . . 12 11 63 14 . 2 1 2 . . . Parts Fried 221 | . . . . . . . . . . . . . . . . 64 . . 10 23 89 28 . 5 1 1 . . . Impact Corruptions . | . . . . . . . . . . . . . . . . . . . . . . . . . . . . . . Robots Melted . | . . . . . . . . . . . . . . . . . . . . . . . . . . . . . . Combat Hostiles . | . . . . . . . . . . . . . . . . . . . . . . . . . . . . . . Parts Melted 18 | . . . . . 4 4 1 . . . . 1 1 . . . . . . . . . . . . 7 . . . Heat Transferred 26795 | . 666 . . 320 3440 1040 880 1520 . 1360 . 800 7800 100 . 1024 . . 300 150 1850 1336 . 50 200 3811 . . 148 Parts Sabotaged 3 | . . . . . . . . . . . . . . . . 3 . . . . . . . . . . . . . Parts Stolen . | . . . . . . . . . . . . . . . . . . . . . . . . . . . . . . Parts Stripped . | . . . . . . . . . . . . . . . . . . . . . . . . . . . . . . Power Chain Reactions 56 | . . . . . 1 . . . . . . . 1 . . 19 . . 2 4 22 5 . 1 1 . . . . Alert | -11 -10 -10 -10 -9 -8 -8 -8 -8 -7 -7 -7 -7 -6 -5 -5 -5 -5 -5 -4 -4 -4 -4 -3 -3 -2 -2 -2 -2 -1 ------- Run | Yrd Mat Min Exi Min Mat Gar Mat Gar Fac Gar Fac Gar Fac Fac Was Fac Upp Upp Fac Gar Fac Arm Res Gar Res Gar Res Gar Acc Maximum Alert Level 5 | . . . . . 1 1 2 2 1 2 1 . 2 1 . 5 . . 2 3 5 3 1 . . 1 . . . Low Security (%) 52 | 100 100 100 . 100 95 50 64 . . 15 82 100 79 90 100 20 . . . . 19 45 86 100 100 96 100 100 100 Level 1 19 | . . . . . 4 50 7 18 100 47 17 . 17 9 . 27 . . . 4 20 37 13 . . 3 . . . Level 2 14 | . . . . . . . 27 81 . 36 . . 2 . . 16 . . 100 30 27 11 . . . . . . . Level 3 5 | . . . . . . . . . . . . . . . . 14 . . . 65 9 5 . . . . . . . Level 4 3 | . . . . . . . . . . . . . . . . 9 . . . . 9 . . . . . . . . Level 5 4 | . . . . . . . . . . . . . . . . 10 . . . . 13 . . . . . . . . High Security . | . . . . . . . . . . . . . . . . . . . . . . . . . . . . . . Max Security . | . . . . . . . . . . . . . . . . . . . . . . . . . . . . . . Sterilizations 2 | . . . . . . . . . . . . . . . . 1 . . . . 1 . . . . . . . . Peak Influence 1737 | . 142 18 . 82 246 269 515 623 326 507 269 167 492 332 114 1619 . . 671 989 1737 850 213 97 75 231 30 16 80 Initial 850 | . . 18 . . . 48 130 324 326 146 261 . 81 182 114 58 . . 482 347 518 850 205 6 20 35 . 15 19 Average 341 | . 77 2 . 21 86 177 222 530 269 334 49 89 124 91 100 609 . . 579 770 667 278 116 61 21 85 10 8 37 Influence Increases 16205 | . 458 . . 192 750 221 739 339 3 613 131 247 1881 808 . 3307 8 . 491 702 3157 924 48 91 212 452 40 32 359 Destroy 0b10 Robot/C 7208 | . 320 . . 120 460 120 360 160 . 444 48 156 850 260 . 1270 . . 230 250 1310 470 . 40 60 230 . . 50 Destroy 0b10 Robot/NC 872 | . 25 . . 5 50 5 55 . . . 3 6 147 102 . 216 . . 12 . 204 15 9 . 9 . . . 9 Destroy Leader 1462 | . 56 . . 20 118 . 112 30 . 34 24 24 233 68 . 256 . . 50 15 278 108 1 . 5 20 . . 10 Allied During Kill 144 | . . . . 2 . . . 18 . 27 . 3 18 13 . 8 . . . 14 . 27 . . . 14 . . . Trap Triggered on 0b10 125 | . . . . . . . . . . . . . 5 . . 20 . . . . 95 5 . . . . . . . Successful Hack 442 | . 25 . . . 11 12 18 . . 8 46 . 56 51 . 76 . . 12 13 34 21 10 4 12 13 . . 20 Disable Machine 963 | . . . . 15 30 . 30 15 . . . 9 224 80 . 160 . . 64 8 176 104 8 16 8 8 . . 8 Anti-Garrison Action 403 | . . . . . . 50 . 38 . 60 . 30 . . . . . . . 100 . . . . . 125 . . . Destroy Structure 1558 | . 17 . . . 36 34 44 18 3 10 10 19 164 114 . 365 . . 43 102 396 62 12 23 46 10 . . 30 Partial Spotted 223 | . . . . . . . 15 . . . . . 24 24 . 88 . . 16 8 32 . 8 . . . . . 8 Lose Combat Pursuer 2805 | . 15 . . 30 45 . 105 60 . 30 . . 160 96 . 848 8 . 64 192 632 112 . 8 72 32 40 32 224 Influence Decreases 16180 | . 411 47 . 192 676 26 509 215 417 323 630 90 1666 854 242 1772 680 181 760 210 2409 2269 431 63 202 499 20 20 366 Entered New Map 4281 | . . 29 . . . 26 139 175 297 63 238 . 76 190 212 26 600 181 284 150 471 887 187 3 17 12 . 5 13 Time Decay 5695 | . 391 18 . 172 383 . 310 . 120 . 242 . 570 524 30 636 80 . 326 . 666 652 214 . 157 . 20 . 184 Lost Part 1602 | . 20 . . . . . 60 . . 100 . 50 280 70 . 310 . . . . 52 60 10 40 28 367 . 15 140 Lost Ally 909 | . . . . 20 . . . 40 . 160 . 40 140 70 . 50 . . . 60 70 70 20 20 . 120 . . 29 Purge Threat 3693 | . . . . . 293 . . . . . 150 . 600 . . 750 . . 150 . 1150 600 . . . . . . . Squads Dispatched 179 | . 2 . . 1 1 . 8 . 1 . 2 . 27 12 . 45 . . 5 . 49 13 3 . 4 . . . 6 Investigation 29 | . 1 . . . 1 . 3 . 1 . . . 4 2 . 7 . . 1 . 5 . 2 . . . . . 2 Extermination 52 | . . . . . . . . . . . 2 . 12 2 . 13 . . 1 . 11 8 1 . . . . . 2 Reinforcement 72 | . 1 . . . . . 2 . . . . . 11 8 . 19 . . 2 . 18 5 . . 4 . . . 2 Assault 12 | . . . . 1 . . . . . . . . . . . 6 . . . . 5 . . . . . . . . Garrison 14 | . . . . . . . 3 . . . . . . . . . . . 1 . 10 . . . . . . . . Intercept . | . . . . . . . . . . . . . . . . . . . . . . . . . . . . . . Searches Triggered . | . . . . . . . . . . . . . . . . . . . . . . . . . . . . . . Unchained Authorized 5 | . . . . . . . . . . . . . . . . 1 . . 1 . . 2 1 . . . . . . Construction Impeded 27 | . . . . . . . 1 . . . . . 3 4 . 8 . . . . 10 . . . 1 . . . . Haulers Reinforced 11 | . . . . . . . . . . . . . 3 . . 5 . . . . 3 . . . . . . . . Active Scanning Responses . | . . . . . . . . . . . . . . . . . . . . . . . . . . . . . . Cargo Convoy Interrupts . | . . . . . . . . . . . . . . . . . . . . . . . . . . . . . . Stealth | -11 -10 -10 -10 -9 -8 -8 -8 -8 -7 -7 -7 -7 -6 -5 -5 -5 -5 -5 -4 -4 -4 -4 -3 -3 -2 -2 -2 -2 -1 --------- Run | Yrd Mat Min Exi Min Mat Gar Mat Gar Fac Gar Fac Gar Fac Fac Was Fac Upp Upp Fac Gar Fac Arm Res Gar Res Gar Res Gar Acc Distress Signals 49 | . . . . . 4 . 2 . . . 1 . 4 3 . 11 . . . . 17 1 2 . 1 . 1 . 2 Communications Jammed 46 | . . . . . . . . . . . . . . . . . . . . . 46 . . . . . . . . Distress Signals 46 | . . . . . . . . . . . . . . . . . . . . . 46 . . . . . . . . Times Spotted 748 | . 22 3 . 8 24 . 31 8 . 32 7 9 109 45 . 113 1 5 18 17 121 47 2 7 23 40 5 9 42 Peak Tracking Total 17 | . 4 5 . 4 6 2 8 4 . 9 4 3 5 6 . 10 1 5 6 10 10 17 2 3 9 6 9 9 14 Tactical Retreats 152 | . 1 . . 2 3 . 6 4 . 2 . . 15 6 . 42 1 . 3 7 38 5 . 1 4 2 1 1 8 Traps | -11 -10 -10 -10 -9 -8 -8 -8 -8 -7 -7 -7 -7 -6 -5 -5 -5 -5 -5 -4 -4 -4 -4 -3 -3 -2 -2 -2 -2 -1 ------- Run | Yrd Mat Min Exi Min Mat Gar Mat Gar Fac Gar Fac Gar Fac Fac Was Fac Upp Upp Fac Gar Fac Arm Res Gar Res Gar Res Gar Acc Traps Triggered 56 | . 7 . . . 1 1 1 1 . 4 . 1 8 3 . 14 . . 1 6 5 3 . . . . . . . Indirectly 10 | . . . . . . . . . . . . . 1 . . . . . . 4 3 2 . . . . . . . Trap Hack Attempts 221 | . 39 . . . . . . . . . . . 35 12 . 78 . . . . 57 . . . . . . . . Triggered 1 | . . . . . . . . . . . . . . . . . . . . . 1 . . . . . . . . Disarmed 2 | . . . . . . . . . . . . . . . . 1 . . . . 1 . . . . . . . . Reprogrammed 51 | . 3 . . . . . . . . . . . 6 1 . 15 . . 6 . 20 . . . . . . . . Reused 31 | . . . . . . . . . . . . . 1 . . 10 . . . . 18 2 . . . . . . . Traps Extracted 31 | . . . . . . . . . . . . . 5 1 . 15 . . . . 9 1 . . . . . . . Installed 25 | . . . . . . . . . . . . . . . . 14 . . . . 8 3 . . . . . . . Triggered 25 | . . . . . . . . . . . . . 1 . . 4 . . . . 19 1 . . . . . . . Most Traps Carried 8 | . . . . . . . . . . . . . 5 6 6 7 7 7 7 7 8 8 6 6 6 6 . . . Machines | -11 -10 -10 -10 -9 -8 -8 -8 -8 -7 -7 -7 -7 -6 -5 -5 -5 -5 -5 -4 -4 -4 -4 -3 -3 -2 -2 -2 -2 -1 ---------- Run | Yrd Mat Min Exi Min Mat Gar Mat Gar Fac Gar Fac Gar Fac Fac Was Fac Upp Upp Fac Gar Fac Arm Res Gar Res Gar Res Gar Acc Machines Disabled 126 | . . . . 1 2 1 2 2 . . . 2 28 10 . 21 . . 8 4 22 13 1 2 1 5 . . 1 Max in Single Turn 19 | . . . . 1 1 1 1 1 . . . 1 19 5 . 2 . . 2 1 9 1 1 1 1 1 . . 1 Garrison Access 12 | . . . . . . . . . . . . . 3 1 . 3 . . 1 . 3 . . . . . . . 1 Garrison Relay 10 | . . . . . . 1 . 1 . 1 . 1 . . . . . . . 3 . . . . . 3 . . . Phase Generator 1 | . . . . . . . . . . 1 . . . . . . . . . . . . . . . . . . . Energy Cycler 1 | . . . . . . . . . . . . . . . . . . . . . . . . . . . . . 1 Machines Repaired . | . . . . . . . . . . . . . . . . . . . . . . . . . . . . . . Machines Dismantled . | . . . . . . . . . . . . . . . . . . . . . . . . . . . . . . Machines Sabotaged . | . . . . . . . . . . . . . . . . . . . . . . . . . . . . . . Overloaded Fab Kills . | . . . . . . . . . . . . . . . . . . . . . . . . . . . . . . Hacking | -11 -10 -10 -10 -9 -8 -8 -8 -8 -7 -7 -7 -7 -6 -5 -5 -5 -5 -5 -4 -4 -4 -4 -3 -3 -2 -2 -2 -2 -1 --------- Run | Yrd Mat Min Exi Min Mat Gar Mat Gar Fac Gar Fac Gar Fac Fac Was Fac Upp Upp Fac Gar Fac Arm Res Gar Res Gar Res Gar Acc Machines Accessed 206 | . 9 . 2 . 9 2 10 . 4 1 11 . 32 15 . 34 . . 12 2 30 10 6 2 3 2 2 1 7 Terminals 117 | . 7 . . . 7 2 7 . 2 1 7 . 17 7 . 16 . . 7 2 14 7 2 2 2 2 1 1 4 Fabricators 15 | . . . . . . . . . . . 1 . 1 3 . 3 . . . . 4 2 . . . . . . 1 Repair Stations 19 | . 1 . . . . . 1 . 1 . 1 . 4 2 . 2 . . 1 . 4 . 2 . . . . . . Recycling Units 19 | . 1 . . . . . . . . . . . 3 2 . 8 . . 1 . 3 1 . . . . . . . Scanalyzers 12 | . . . . . 1 . 1 . . . 1 . 3 . . 2 . . 1 . 1 . 1 . . . . . 1 Garrison Access 22 | . . . . . 1 . 1 . 1 . 1 . 4 1 . 3 . . 2 . 4 . 1 . 1 . 1 . 1 Total Hacks 666 | . 33 . 5 . 35 5 29 . 8 2 35 . 82 35 . 110 . . 41 9 121 47 33 2 6 6 2 6 14 Successful 407 | . 17 . 5 . 18 2 18 . 5 2 19 . 49 26 . 61 . . 31 3 88 27 15 2 4 4 2 4 5 Failed 256 | . 16 . . . 16 3 11 . 3 . 16 . 33 9 . 48 . . 10 6 32 20 18 . 2 2 . 2 9 Catastrophic 26 | . 1 . . . . . 2 . . . 1 . 1 . . 7 . . . 1 4 3 3 . . . . . 3 Database Lockouts 3 | . . . . . 1 . . . . . . . . . . 1 . . . . 1 . . . . . . . . Manual 386 | . 19 . 1 . 18 1 19 . 6 1 26 . 41 22 . 65 . . 24 7 68 35 11 1 5 4 . 5 7 Terminals 399 | . 23 . . . 25 5 22 . 5 2 22 . 45 20 . 56 . . 25 9 64 35 12 2 5 6 1 6 9 Fabricators 47 | . . . . . . . . . . . 4 . 2 4 . 16 . . . . 13 6 . . . . . . 2 Repair Stations 64 | . 6 . . . . . 1 . 2 . 2 . 13 4 . 7 . . 4 . 13 . 12 . . . . . . Recycling Units 61 | . 4 . . . . . . . . . . . 9 6 . 23 . . 3 . 10 6 . . . . . . . Scanalyzers 49 | . . . . . 5 . 3 . . . 3 . 7 . . 5 . . 3 . 13 . 8 . . . . . 2 Garrison Access 41 | . . . . . 5 . 3 . 1 . 4 . 6 1 . 3 . . 6 . 8 . 1 . 1 . 1 . 1 Terminal Hacks 105 | . 5 . 5 . 7 1 2 . 1 1 2 . 12 5 . 14 . . 9 3 16 12 2 1 . 3 1 2 1 Record 4 | . . . 4 . . . . . . . . . . . . . . . . . . . . . . . . . . Part Schematic 9 | . . . . . . . . . . . . . 1 2 . 2 . . 1 . 1 2 . . . . . . . Robot Analysis 6 | . 2 . . . 2 . . . . . . . 1 . . 1 . . . . . . . . . . . . . Prototype ID Bank 10 | . 2 . . . . . 1 . . . . . 2 . . 1 . . 2 . 1 1 . . . . . . . Open Door 2 | . . . . . . . . . . . . . 2 . . . . . . . . . . . . . . . . Open DSF 1 | . . . . . . . . . . . . . . . . . . . . . . . . . . . 1 . . Branch Access Points 2 | . . . . . 1 . . . . . . . . 1 . . . . . . . . . . . . . . . Emergency Access Points 5 | . . . . . . 1 . . . 1 . . . . . . . . . 1 . . . . . 1 . 1 . Machine Index 2 | . . . . . . . . . . . . . 1 . . . . . . . 1 . . . . . . . . Terminal Index 7 | . . . . . 1 . . . 1 . 1 . . 2 . . . . 1 . . . 1 . . . . . . Fabricator Index 1 | . . . . . . . . . . . . . . . . 1 . . . . . . . . . . . . . Scanalyzer Index 1 | . . . . . . . . . . . . . . . . 1 . . . . . . . . . . . . . Garrison Index 1 | . . . . . . . . . . . . . . . . . . . . . 1 . . . . . . . . Alert Level 1 | . . . . . 1 . . . . . . . . . . . . . . . . . . . . . . . . Unreport Threat 21 | . . . . . 2 . . . . . 1 . 4 . . 5 . . 1 . 4 4 . . . . . . . Locate Traps 7 | . 1 . . . . . 1 . . . . . . . . 1 . . 2 . . 2 . . . . . . . Reprogram Traps 2 | . . . . . . . . . . . . . . . . 1 . . 1 . . . . . . . . . . Extermination Status 3 | . . . . . . . . . . . . . . . . . . . . . 3 . . . . . . . . Recall Extermination 3 | . . . . . . . . . . . . . . . . . . . 1 . 2 . . . . . . . . Hauler Manifests 1 | . . . . . . . . . . . . . . . . . . . . . 1 . . . . . . . . Registered Prototypes 1 | . . . . . . . . . . . . . . . . . . . . . . . 1 . . . . . . Zone Layout 8 | . . . . . . . . . . . . . 1 . . 1 . . . . 2 3 . . . . . . 1 Garrison Registry 4 | . . . . . . . . . . . . . . . . . . . . 1 . . . 1 . 1 . 1 . Patrol Navigation 1 | . . . . . . . . . . . . . . . . . . . . . . . . . . 1 . . . Security Stations 1 | . . . . . . . . . . . . . . . . . . . . 1 . . . . . . . . . Proto ID Catalog 1 | . . . 1 . . . . . . . . . . . . . . . . . . . . . . . . . . Fabricator Hacks 19 | . . . . . . . . . . . . . 1 1 . 8 . . . . 6 3 . . . . . . . Network Status 5 | . . . . . . . . . . . . . 1 1 . 2 . . . . . 1 . . . . . . . Load Schematic 8 | . . . . . . . . . . . . . . . . 3 . . . . 4 1 . . . . . . . Build 6 | . . . . . . . . . . . . . . . . 3 . . . . 2 1 . . . . . . . Repair Station Hacks 32 | . 2 . . . . . . . . . 2 . 5 2 . 2 . . 4 . 10 . 5 . . . . . . Scan Component 16 | . 1 . . . . . . . . . 1 . 3 . . 1 . . 2 . 5 . 3 . . . . . . Repair 14 | . 1 . . . . . . . . . 1 . 2 . . 1 . . 2 . 5 . 2 . . . . . . Refit 2 | . . . . . . . . . . . . . . 2 . . . . . . . . . . . . . . . Recycling Unit Hacks 8 | . 1 . . . . . . . . . . . 2 2 . 1 . . . . . 2 . . . . . . . Retrieve Matter 2 | . . . . . . . . . . . . . . 1 . . . . . . . 1 . . . . . . . Retrieve Components 6 | . 1 . . . . . . . . . . . 2 1 . 1 . . . . . 1 . . . . . . . Scanalyzer 33 | . . . . . 4 . 3 . . . 2 . 2 . . 3 . . 3 . 10 . 4 . . . . . 2 Insert Component 10 | . . . . . 2 . . . . . . . . . . 1 . . 1 . 4 . 2 . . . . . . Analyze 11 | . . . . . 2 . . . . . . . . . . 1 . . 1 . 5 . 2 . . . . . . Retrieve Study 12 | . . . . . . . 3 . . . 2 . 2 . . 1 . . 1 . 1 . . . . . . . 2 Garrison Access Hacks 24 | . . . . . 1 . 2 . 1 . 2 . 3 1 . 3 . . 2 . 5 . 1 . 1 . 1 . 1 Unlock Access 9 | . . . . . 1 . 1 . 1 . 1 . . . . . . . 1 . 1 . 1 . 1 . 1 . . Seal Access 12 | . . . . . . . . . . . . . 3 1 . 3 . . 1 . 3 . . . . . . . 1 Coupler Status 3 | . . . . . . . 1 . . . 1 . . . . . . . . . 1 . . . . . . . . Unauthorized Hacks 186 | . 9 . . . 6 1 11 . 3 1 11 . 24 15 . 30 . . 13 . 41 10 3 1 3 1 . 2 1 Terminals 118 | . 7 . . . 6 1 9 . 2 1 9 . 15 10 . 12 . . 9 . 23 4 2 1 3 1 . 2 1 Track 1 | . . . . . . . . . . . . . . . . 1 . . . . . . . . . . . . . Assimilate 5 | . . . . . . . . . . . 2 . . . . . . . 1 . . 2 . . . . . . . Botnet 46 | . 2 . . . 1 1 2 . 1 1 2 . 4 4 . 6 . . 3 . 10 2 1 1 2 1 . 1 1 Disrupt 3 | . . . . . . . 1 . . . . . 1 . . . . . . . . . . . . . . 1 . Operators 2 | . . . . . . . . . . . . . . . . . . . . . 2 . . . . . . . . Skim 61 | . 5 . . . 5 . 6 . 1 . 5 . 10 6 . 5 . . 5 . 11 . 1 . 1 . . . . Fabricators 15 | . . . . . . . . . . . . . 1 2 . 6 . . . . 4 2 . . . . . . . Report 1 | . . . . . . . . . . . . . . . . 1 . . . . . . . . . . . . . Prioritize 5 | . . . . . . . . . . . . . . . . 2 . . . . 2 1 . . . . . . . Liberate 3 | . . . . . . . . . . . . . 1 1 . 1 . . . . . . . . . . . . . Haulers 2 | . . . . . . . . . . . . . . . . 1 . . . . . 1 . . . . . . . Recompile 4 | . . . . . . . . . . . . . . 1 . 1 . . . . 2 . . . . . . . . Repair Stations 8 | . . . . . . . 1 . 1 . . . 1 1 . 1 . . . . 2 . 1 . . . . . . Mechanics 2 | . . . . . . . . . . . . . 1 1 . . . . . . . . . . . . . . . Patch 6 | . . . . . . . 1 . 1 . . . . . . 1 . . . . 2 . 1 . . . . . . Recycling Units 35 | . 2 . . . . . . . . . . . 5 2 . 11 . . 1 . 10 4 . . . . . . . Monitor 3 | . . . . . . . . . . . . . 1 . . . . . . . 1 1 . . . . . . . Reject 14 | . 1 . . . . . . . . . . . 2 1 . 5 . . 1 . 3 1 . . . . . . . Recyclers 6 | . . . . . . . . . . . . . 1 . . 1 . . . . 3 1 . . . . . . . Mask 12 | . 1 . . . . . . . . . . . 1 1 . 5 . . . . 3 1 . . . . . . . Scanalyzers . | . . . . . . . . . . . . . . . . . . . . . . . . . . . . . . Garrison Access 10 | . . . . . . . 1 . . . 2 . 2 . . . . . 3 . 2 . . . . . . . . Broadcast 3 | . . . . . . . . . . . 1 . 1 . . . . . . . 1 . . . . . . . . Decoy 1 | . . . . . . . . . . . . . . . . . . . 1 . . . . . . . . . . Reprogram 4 | . . . . . . . 1 . . . 1 . 1 . . . . . 1 . . . . . . . . . . Intercept 2 | . . . . . . . . . . . . . . . . . . . 1 . 1 . . . . . . . . Data Cores Recovered 3 | . . . . . . . . . . . . . 1 1 . 1 . . . . . . . . . . . . . Used . | . . . . . . . . . . . . . . . . . . . . . . . . . . . . . . Hacking Detections 166 | . 6 . . . 8 2 8 . 4 1 10 . 26 11 . 28 . . 7 2 24 8 5 2 3 2 2 1 6 Full Trace Events 12 | . . . . . . . . . . . . . 2 . . 5 . . . 1 1 . 1 . . . . . 2 Feedback Events . | . . . . . . . . . . . . . . . . . . . . . . . . . . . . . . Feedback Blocked . | . . . . . . . . . . . . . . . . . . . . . . . . . . . . . . Robot Schematics Acquired . | . . . . . . . . . . . . . . . . . . . . . . . . . . . . . . Robots Built . | . . . . . . . . . . . . . . . . . . . . . . . . . . . . . . Authchips . | . . . . . . . . . . . . . . . . . . . . . . . . . . . . . . Time . | . . . . . . . . . . . . . . . . . . . . . . . . . . . . . . Total Robot Build Rating . | . . . . . . . . . . . . . . . . . . . . . . . . . . . . . . Part Schematics Acquired 18 | . . . . . 2 . . . . . . . 1 2 . 3 . . 2 . 5 2 1 . . . . . . Parts Built 9 | . . . . . . . . . . . . . . . . 4 . . . . 3 2 . . . . . . . Authchips 4 | . . . . . . . . . . . . . . . . 2 . . . . 1 1 . . . . . . . Time 388 | . . . . . . . . . . . . . . . . 269 . . . . 61 58 . . . . . . . Total Part Build Rating 53 | . . . . . . . . . . . . . . . . 24 . . . . 15 14 . . . . . . . Part Studies Acquired 12 | . . . . . . . 3 . . . 2 . 2 . . 1 . . 1 . 1 . . . . . . . 2 Parts Repaired 14 | . 1 . . . . . . . . . 1 . 2 . . 1 . . 2 . 5 . 2 . . . . . . Time 679 | . 13 . . . . . . . . . 44 . 47 . . 50 . . 145 . 274 . 106 . . . . . . Parts Recycled . | . . . . . . . . . . . . . . . . . . . . . . . . . . . . . . Recycled Matter . | . . . . . . . . . . . . . . . . . . . . . . . . . . . . . . Retrieved Matter 137 | . . . . . . . . . . . . . . 137 . . . . . . . . . . . . . . . Retrieved Components 48 | . 9 . . . . . . . . . . . 19 10 . 7 . . . . . 3 . . . . . . . Parts Scanalyzed 9 | . . . . . 2 . . . . . . . . . . 1 . . 1 . 4 . 1 . . . . . . Part Schematics Acquired 9 | . . . . . 2 . . . . . . . . . . 1 . . 1 . 4 . 1 . . . . . . Parts Damaged 1 | . . . . . . . . . . . . . . . . . . . . . . . 1 . . . . . . Bothacking | -11 -10 -10 -10 -9 -8 -8 -8 -8 -7 -7 -7 -7 -6 -5 -5 -5 -5 -5 -4 -4 -4 -4 -3 -3 -2 -2 -2 -2 -1 ------------ Run | Yrd Mat Min Exi Min Mat Gar Mat Gar Fac Gar Fac Gar Fac Fac Was Fac Upp Upp Fac Gar Fac Arm Res Gar Res Gar Res Gar Acc Used RIF Installer 8 | . . . . . . 1 . 1 . 1 . 1 . . . . . . . 1 . . . 1 . 1 . 1 . Command Fork 1 | . . . . . . . . . . . . . . . . . . . . . . . . . . . . 1 . Threat Obfuscator 3 | . . . . . . . . 1 . 1 . 1 . . . . . . . . . . . . . . . . . Signal Jammer 1 | . . . . . . . . . . . . . . . . . . . . 1 . . . . . . . . . Structural Interface 1 | . . . . . . . . . . . . . . . . . . . . . . . . 1 . . . . . Autooverride 1 | . . . . . . . . . . . . . . . . . . . . . . . . . . 1 . . . Robots Hacked 27 | . . . . . . . . . . . . 3 4 2 . 1 . . . 2 5 . . . . 9 . 1 . Non-combat 12 | . . . . . . . . . . . . 1 3 2 . 1 . . . . 5 . . . . . . . . Combat 15 | . . . . . . . . . . . . 2 1 . . . . . . 2 . . . . . 9 . 1 . Autooverrided 1 | . . . . . . . . . . . . . . . . . . . . . . . . . . . . 1 . Robot Hacks Applied 38 | . . . . . . . . . . . . 5 4 2 . 2 . . . 2 13 . . . . 10 . . . parse_system 2 | . . . . . . . . . . . . 1 . . . . . . . . . . . . . 1 . . . generate_anomaly 1 | . . . . . . . . . . . . . . . . . . . . . 1 . . . . . . . . find_chute 1 | . . . . . . . . . . . . . 1 . . . . . . . . . . . . . . . . map_walls 1 | . . . . . . . . . . . . . . . . . . . . . 1 . . . . . . . . drop_inventory 1 | . . . . . . . . . . . . . . . . . . . . . 1 . . . . . . . . find_station 1 | . . . . . . . . . . . . . . . . 1 . . . . . . . . . . . . . deconstruct_bot 1 | . . . . . . . . . . . . 1 . . . . . . . . . . . . . . . . . purge_threat 6 | . . . . . . . . . . . . . . . . . . . . . 6 . . . . . . . . reprogram_traps 1 | . . . . . . . . . . . . . . . . . . . . . 1 . . . . . . . . block_reporting 2 | . . . . . . . . . . . . . . . . . . . . . 2 . . . . . . . . spike_heat 1 | . . . . . . . . . . . . . . . . . . . . . . . . . . 1 . . . amplify_resonance 2 | . . . . . . . . . . . . . . . . . . . . . . . . . . 2 . . . reboot_system 1 | . . . . . . . . . . . . 1 . . . . . . . . . . . . . . . . . overwrite_iff 2 | . . . . . . . . . . . . . . . . . . . . . . . . . . 2 . . . formatsys_low 7 | . . . . . . . . . . . . 1 2 2 . 1 . . . . 1 . . . . . . . . formatsys_high 8 | . . . . . . . . . . . . 1 1 . . . . . . 2 . . . . . 4 . . . Relay Couplers Released 55 | . . . . . . 5 . 5 . 5 . 4 7 . . . . . . 12 . . . . . 17 . . . Machine Destruction 47 | . . . . . . 5 . 5 . 5 . 4 3 . . . . . . 12 . . . . . 13 . . . Programmers 8 | . . . . . . . . . . . . . 4 . . . . . . . . . . . . 4 . . . Attached 15 | . . . . . . . . 1 . . . 2 2 1 . . . . . 1 3 . . . . 4 1 . . Fabnet Peak Effective % . | . . . . . . . . . . . . . . . . . . . . . . . . . . . . . . Robots Rewired 16 | . . . . . . . . . . 8 . . 2 . . . . . . 1 1 4 . . . . . . . Allies Hacked 1 | . . . . . . . . . . . . . . . . 1 . . . . . . . . . . . . . Hacks Repelled . | . . . . . . . . . . . . . . . . . . . . . . . . . . . . . . Allies | -11 -10 -10 -10 -9 -8 -8 -8 -8 -7 -7 -7 -7 -6 -5 -5 -5 -5 -5 -4 -4 -4 -4 -3 -3 -2 -2 -2 -2 -1 -------- Run | Yrd Mat Min Exi Min Mat Gar Mat Gar Fac Gar Fac Gar Fac Fac Was Fac Upp Upp Fac Gar Fac Arm Res Gar Res Gar Res Gar Acc Total Allies 57 | . . . . 1 . . 2 . . 8 2 2 9 5 . 4 . . . 5 2 6 . 2 . 8 . 1 . Largest Group 5 | . . . . 1 . . 2 2 . 3 1 2 4 4 . 3 . . . 2 2 5 . 2 . 5 . 1 . Highest-Rated Group 331 | . . . . 31 . . 32 32 . 120 26 58 142 110 . 87 . . . 157 98 192 . 157 . 331 . 58 . Highest-Rated Ally 95 | . . . . 31 . . 16 16 . 40 26 32 55 29 . 29 . . . 95 56 48 . 95 . 95 . 58 . Total Orders 48 | . . . . . . . . . . . 1 12 13 6 . 5 . . . 2 . 4 1 . . . . . 4 STAY 20 | . . . . . . . . . . . 1 5 6 3 . 2 . . . 1 . 2 . . . . . . . ROAM 1 | . . . . . . . . . . . . . . . . . . . . . . 1 . . . . . . . FOLLOW 10 | . . . . . . . . . . . . 5 1 2 . . . . . 1 . 1 . . . . . . . AID 12 | . . . . . . . . . . . . 2 6 1 . 3 . . . . . . . . . . . . . EXPLORE 4 | . . . . . . . . . . . . . . . . . . . . . . . 1 . . . . . 3 RETURN 1 | . . . . . . . . . . . . . . . . . . . . . . . . . . . . . 1 Ally Attacks 206 | . . . . 5 . . 2 18 . 40 . 6 35 12 . 18 . . . 15 10 14 . 7 . 22 . 2 . Total Damage 4513 | . . . . 83 . . 17 104 . 604 . 213 522 189 . 236 . . . 752 402 423 . 354 . 551 . 63 . Kills 21 | . . . . 1 . . . 1 . 4 . 1 3 3 . 3 . . . 1 . 2 . . . 2 . . . Allies Corrupted 3 | . . . . . . . . . . . . . . . . . . . . . 1 1 . 1 . . . . . Allies Melted 1 | . . . . . . . . . . 1 . . . . . . . . . . . . . . . . . . . Intel | -11 -10 -10 -10 -9 -8 -8 -8 -8 -7 -7 -7 -7 -6 -5 -5 -5 -5 -5 -4 -4 -4 -4 -3 -3 -2 -2 -2 -2 -1 ------- Run | Yrd Mat Min Exi Min Mat Gar Mat Gar Fac Gar Fac Gar Fac Fac Was Fac Upp Upp Fac Gar Fac Arm Res Gar Res Gar Res Gar Acc Active Infowar (turns) 10607 | . 37 . . . 312 . . . . . . . 4022 602 72 2345 162 . . . 297 1118 332 4 350 726 . . 228 Optics 611 | . 37 . . . . . . . . . . . 574 . . . . . . . . . . . . . . . . IFF 271 | . . . . . . . . . . . . . . . . 109 162 . . . . . . . . . . . . Terrain 90 | . . . . . . . . . . . . . 90 . . . . . . . . . . . . . . . . Structural 8995 | . . . . . . . . . . . . . 3405 602 72 1875 . . . . 296 1107 331 4 350 726 . . 227 Traps 376 | . . . . . . . . . . . . . . . . 376 . . . . . . . . . . . . . Seismic 1 | . . . . . . . . . . . . . . . . . . . . . 1 . . . . . . . . Machine Analysis 423 | . . . . . 312 . . . . . . . . . . . . . . . . . . . . . . . 111 Cloaking 113 | . . . . . . . . . . . . . . . . . . . . . . 11 72 . 30 . . . . Robot Analysis Total 6 | . 2 . . . 2 . . . . . . . 1 . . 1 . . . . . . . . . . . . . Derelict Logs Recovered 1 | . . . . . . . . . . . . . . . . . 1 . . . . . . . . . . . . Drone Launches 20 | . . . . . . . . . . . . . . . . . . . . . . . 2 . . . . . 18 Drone Recoveries 12 | . . . . . . . . . . . . . . . . . . . . . . . . . . . . . 12 Exploration | -11 -10 -10 -10 -9 -8 -8 -8 -8 -7 -7 -7 -7 -6 -5 -5 -5 -5 -5 -4 -4 -4 -4 -3 -3 -2 -2 -2 -2 -1 ------------- Run | Yrd Mat Min Exi Min Mat Gar Mat Gar Fac Gar Fac Gar Fac Fac Was Fac Upp Upp Fac Gar Fac Arm Res Gar Res Gar Res Gar Acc Turns Passed 35869 | 27 1018 187 782 550 1094 450 696 447 245 1356 1060 690 6034 1501 72 6771 176 3 729 601 5742 2400 442 198 382 1703 77 48 388 Spaces Moved 39199 | 35 653 113 411 250 547 258 411 254 195 779 756 360 6534 1863 131 9392 415 8 1089 678 7490 3129 591 242 357 1048 280 179 751 Core 182 | 34 117 . . . . . . . . . . . . . . . . . . . . . . . . 28 . . 3 Treads 12 | . . . . . . . . . . . . . . . . . . . . . . . . . . 12 . . . Legs 5761 | 1 536 113 411 250 547 258 411 254 195 779 756 360 244 . . . . . . . . . . . . 646 . . . Wheels . | . . . . . . . . . . . . . . . . . . . . . . . . . . . . . . Hover 31389 | . . . . . . . . . . . . . 5685 1863 131 9392 415 8 1089 678 7490 3129 591 242 357 319 . . . Flight 1855 | . . . . . . . . . . . . . 605 . . . . . . . . . . . . 43 280 179 748 Fastest Speed 19 | 50 50 120 120 120 120 125 107 107 107 111 105 111 26 41 50 31 38 36 36 50 45 46 43 43 43 19 25 19 22 Average Speed 58 | 52 111 155 189 169 123 125 111 107 111 114 107 119 59 50 50 41 38 36 44 50 49 49 43 43 47 99 25 23 28 Slowest Speed 290 | 120 200 190 190 190 190 125 125 107 113 118 118 183 290 111 50 108 38 36 50 50 96 50 46 43 98 200 25 25 280 Overloaded Moves . | . . . . . . . . . . . . . . . . . . . . . . . . . . . . . . Propulsion Burnouts . | . . . . . . . . . . . . . . . . . . . . . . . . . . . . . . Robots Hopped 27 | . . . . . . . . . . . . . 5 . . . . . . . . 1 . . . 2 5 . 14 Potential Cave-ins . | . . . . . . . . . . . . . . . . . . . . . . . . . . . . . . Cave-ins Triggered . | . . . . . . . . . . . . . . . . . . . . . . . . . . . . . . Exploration Rate (%) 46 | 4 96 23 61 41 60 38 44 32 9 69 26 46 94 44 77 96 72 3 29 86 92 66 20 27 12 68 7 37 30 Regions Visited 29 Branch Regions 6 Pre-discovered Areas 15 | . 1 . 1 . 1 . . . . . 1 . 1 2 . 3 1 . 2 . 2 . . . . . . . . Known Exits Taken 16 | . 1 . 1 . 1 . 1 . 1 . 1 . 1 . . 1 1 1 1 . 1 1 1 . 1 . 1 . . Unknown Exits Taken 3 | 1 . 1 . 1 . . . . . . . . . . . . . . . . . . . . . . . . . Scrap Searched 2 | . . . . . . . . . . . . . . . . . 2 . . . . . . . . . . . . Spaces Dug 264 | . . . . . . 9 2 5 3 1 10 . 37 22 . 55 5 . 6 1 56 26 12 1 7 . . . 6 Terrain Destroyed 1572 | . 16 . . . 37 9 50 5 3 25 10 8 170 159 . 387 5 . 41 52 446 63 12 15 40 4 . . 15 Melee 256 | . . . . . . 9 2 5 3 . 10 . 37 22 . 54 5 . 6 1 56 20 12 1 7 . . . 6 Projectile 114 | . . . . . 5 . 1 . . 15 . 7 13 12 . 32 . . . . 1 25 . . . 3 . . . AOE 1180 | . 16 . . . 32 . 46 . . 10 . . 117 125 . 286 . . 35 51 389 17 . 14 33 . . . 9 Terrain Rammed . | . . . . . . . . . . . . . . . . . . . . . . . . . . . . . . Walls Destroyed . | . . . . . . . . . . . . . . . . . . . . . . . . . . . . . . Machines Disabled . | . . . . . . . . . . . . . . . . . . . . . . . . . . . . . . Actions | -11 -10 -10 -10 -9 -8 -8 -8 -8 -7 -7 -7 -7 -6 -5 -5 -5 -5 -5 -4 -4 -4 -4 -3 -3 -2 -2 -2 -2 -1 --------- Run | Yrd Mat Min Exi Min Mat Gar Mat Gar Fac Gar Fac Gar Fac Fac Was Fac Upp Upp Fac Gar Fac Arm Res Gar Res Gar Res Gar Acc Total 48111 | 41 833 124 413 351 821 320 525 372 210 1081 957 529 7872 2188 137 11545 423 7 1261 843 9061 3809 751 313 533 1503 281 184 823 Wait 3823 | . 29 6 . 65 108 7 17 62 5 50 148 73 466 71 . 1102 1 . 78 52 716 259 108 27 122 227 5 6 13 Move 39126 | 34 652 112 410 249 547 257 410 253 195 778 755 359 6523 1863 130 9391 414 7 1088 677 7489 3126 591 241 357 1044 270 178 726 Hop 22 | . . . . . . . . . . . . . 5 . . . . . . . . 1 . . . 1 5 . 10 Pick Up 217 | 3 12 1 1 2 5 . 3 1 . 3 7 1 35 17 1 32 . . 5 4 42 19 4 1 . 15 . . 3 Fast Attach 309 | 4 14 1 . 1 2 . 4 1 1 11 1 4 60 15 . 79 . . 5 1 16 15 5 2 3 42 . . 22 Attach 249 | . 3 . . . 5 . 2 . . 8 1 5 35 13 . 54 . . 5 . 56 28 7 7 10 8 1 . 1 Detach 158 | . . . . . . . . . . 2 1 4 23 9 . 41 . . 1 . 26 24 5 7 7 6 . . 2 Swap 585 | . 14 2 . 8 40 11 18 12 1 45 11 17 146 40 2 90 3 . 3 2 60 33 11 2 2 12 . . . Drop 380 | . 12 2 2 6 10 1 4 2 1 24 8 4 83 21 4 73 . . 7 2 53 33 4 4 . 15 . . 5 Fire 2109 | . 57 . . 19 104 14 61 25 . 97 14 51 339 61 . 403 . . 60 65 381 207 . 20 12 113 . . 6 Melee 745 | . . . . . . 27 4 14 7 5 11 8 118 64 . 158 5 . 9 22 155 48 16 2 20 18 . . 34 Ram 1 | . . . . . . . . . . . . . 1 . . . . . . . . . . . . . . . . Kick 5 | . 1 . . 1 . . 2 . . . . . 1 . . . . . . . . . . . . . . . . Crush . | . . . . . . . . . . . . . . . . . . . . . . . . . . . . . . Escape Stasis 56 | . . . . . . 3 . 2 . 5 . 2 . . . 29 . . . 15 . . . . . . . . . Rewire 79 | . . . . . . . . . . 53 . 1 2 2 . 1 . . . 3 2 13 . . . 2 . . . Trap 246 | . 39 . . . . . . . . . . . 35 12 . 92 . . . . 65 3 . . . . . . . Miscellaneous 1 | . . . . . . . . . . . . . . . . . . . . . . . . . . . . . 1 Route ------- -11/Scrapyard -10/Materials (discovered 6 exits: [*Mat x3] / *Min x2 / Sub) -10/Mines -10/Exiles (discovered 2 exits: *Min x2) -9/Mines -8/Materials (discovered 2 exits: *Fac / Gar) -8/Garrison -8/Materials (discovered 2 exits: Fac / Gar) -8/Garrison -7/Factory (discovered 5 exits: Fac / Sto / Low x2 / Gar) -7/Garrison (discovered 3 exits: *Fac x3) -7/Factory (discovered 5 exits: Fac x2 / Low x2 / Gar) -7/Garrison -6/Factory (discovered 8 exits: *Fac x4 / *Low x2 / [*Ext x2]) -5/Factory (discovered 6 exits: *Fac x4 / *Upp x2) -5/Waste -5/Factory (discovered 6 exits: *Fac x4 / *Upp x2) -5/Upper Caves -5/Upper Caves (discovered 2 exits: *Fac / Zhi) -4/Factory (discovered 5 exits: *Res x2 / *Upp x2 / Gar) -4/Garrison (discovered 3 exits: *Fac x3) -4/Factory (discovered 8 exits: *Res x4 / *Upp x2 / *Arm / Gar) -4/Armory -3/Research (discovered 4 exits: Res x2 / Tes / Gar) -3/Garrison (discovered 4 exits: *Res x3 / [Res]) -2/Research -2/Garrison (discovered 3 exits: *Res x3) -2/Research -2/Garrison (discovered 3 exits: *Acc x3) -1/Access To Epsilon Eridani History --------- Turn | Location | Event 7 | -11/Scrapyard | Discovered new exit (range 16) 28 | -11/Scrapyard | Entered Materials 256 | -10/Materials | Repaired Aluminum Leg 325 | -10/Materials | Build established: Mutant 458 | -10/Materials | Discovered new exit (range 16) 588 | -10/Materials | Discovered new exit (range 6) 731 | -10/Materials | Discovered new exit (range 16) 806 | -10/Materials | Identified exit to Subcaves 806 | -10/Materials | Identified exit to Mines 887 | -10/Materials | Learned 4 Recycling zone layouts 951 | -10/Materials | Discovered new exit (range 16) 978 | -10/Materials | Learned location of 1 exit from Recycling 1046 | -10/Materials | Entered Mines 1065 | -10/Mines | Assembled infested the area 1095 | -10/Mines | Met 8R-AWN 1226 | -10/Mines | Discovered new exit (range 5) 1233 | -10/Mines | Entered Exiles 1234 | -10/Exiles | Identified exit to Mines 1277 | -10/Exiles | Welcomed by 8R-AWN 1313 | -10/Exiles | Met EX-HEX 1363 | -10/Exiles | Met EX-BIN 1393 | -10/Exiles | Build established: Scavenger-Mutant 1503 | -10/Exiles | Met EX-DEC 1707 | -10/Exiles | Learned location of Zion (-7) 1765 | -10/Exiles | Aligned with FarCom system 1767 | -10/Exiles | Given EX-Vault access code 1815 | -10/Exiles | Opened EX-Vault 1829 | -10/Exiles | Found Gui. Plasma Cannon 1868 | -10/Exiles | Warned to stay clear of 0b10 Research branches 1946 | -10/Exiles | Learned about 8R-AWN's background 2015 | -10/Exiles | Left Exiles lab with Gui. Plasma Cannon 2015 | -10/Exiles | Entered Mines 2025 | -9/Mines | Met a Derelict bent on vengeance 2029 | -9/Mines | Core integrity fell below 50% 2076 | -9/Mines | Met a Derelict testing a Signal Generator 2306 | -9/Mines | Discovered new exit (range 11) 2565 | -9/Mines | Entered Materials 2565 | -8/Materials | Evolved 4 slots: Propulsion x2, Utility x2 3210 | -8/Materials | Central database locked down 3394 | -8/Materials | Discovered new exit (range 7) 3463 | -8/Materials | Learned location of Lower Caves (-7) 3511 | -8/Materials | Learned Storage emergency access door positions 3562 | -8/Materials | Identified exit to Garrison 3589 | -8/Materials | Learned location of 2 exits from Factory 3616 | -8/Materials | Learned location of 1 exit from Extension 3654 | -8/Materials | Learned 4 Recycling zone layouts 3659 | -8/Materials | Entered Garrison 3713 | -8/Garrison | Triggered checkpoint 3755 | -8/Garrison | Garrison Relay disabled 3878 | -8/Garrison | Triggered checkpoint 4059 | -8/Garrison | Installed Relay Interface Framework 4104 | -8/Garrison | Discovered new exit (range 4) 4109 | -8/Garrison | Entered Materials 4412 | -8/Materials | Build established: Mutant 4598 | -8/Materials | Garrison activated, responded to threat 4632 | -8/Materials | Destroyed 9 combat bots 4690 | -8/Materials | Lost 5 parts (4n1u) 4753 | -8/Materials | Identified exit to Garrison 4795 | -8/Materials | Identified exit to Factory 4805 | -8/Materials | Entered Garrison 4805 | -8/Garrison | Accompanied by 2 allies 4889 | -8/Garrison | Triggered checkpoint 4951 | -8/Garrison | Gui. Plasma Cannon suddenly broke down 4975 | -8/Garrison | Build established: Scavenger-Mutant 4988 | -8/Garrison | Discovered exit to Factory (range 8) 5071 | -8/Garrison | Triggered checkpoint 5135 | -8/Garrison | Expanded RIF knowledge: Threat Obfuscation 5154 | -8/Garrison | Garrison Relay disabled 5252 | -8/Garrison | Entered Factory 5252 | -7/Factory | Evolved 2 slots: Power x1, Utility x1 5253 | -7/Factory | Identified exit to Lower Caves 5254 | -7/Factory | Identified exit to Storage 5254 | -7/Factory | Identified exit to Factory 5497 | -7/Factory | Identified exit to Garrison 5497 | -7/Factory | Entered Garrison 5506 | -7/Garrison | Phase Generator disabled 5526 | -7/Garrison | Met a derelict Sapper fleeing the area 5657 | -7/Garrison | Lost 3 parts (1n1u1w) 5673 | -7/Garrison | Lost 3 allies 5735 | -7/Garrison | Garrison Relay disabled 5791 | -7/Garrison | Triggered checkpoint 5819 | -7/Garrison | Triggered checkpoint 5882 | -7/Garrison | Lost 4 parts (1p2n1w) 5903 | -7/Garrison | Triggered checkpoint 5975 | -7/Garrison | Expanded RIF knowledge: Threat Obfuscation 6105 | -7/Garrison | Triggered checkpoint 6187 | -7/Garrison | Triggered checkpoint 6199 | -7/Garrison | Gui. Plasma Cannon suddenly broke down 6217 | -7/Garrison | Triggered checkpoint 6254 | -7/Garrison | Lost 3 allies 6270 | -7/Garrison | Discovered new exit (range 3) 6370 | -7/Garrison | Discovered new exit (range 11) 6449 | -7/Garrison | Triggered checkpoint 6465 | -7/Garrison | Triggered checkpoint 6497 | -7/Garrison | Discovered new exit (range 10) 6507 | -7/Garrison | Lost 3 allies 6609 | -7/Garrison | Gui. Plasma Cannon suddenly broke down 6675 | -7/Garrison | Triggered checkpoint 6853 | -7/Garrison | Entered Factory 7171 | -7/Factory | Repaired Recalibrator 7394 | -7/Factory | P-60 Hacker assimilated allied Technician 4a 7486 | -7/Factory | Identified exit to Garrison 7764 | -7/Factory | Learned location of 1 exit from Cetus 7798 | -7/Factory | Learned location of Extension (-6) 7824 | -7/Factory | Loaded intel: 82 trap records 7904 | -7/Factory | Learned Factory stockpile data 7913 | -7/Factory | Entered Garrison 7913 | -7/Garrison | Accompanied by 1 ally 7960 | -7/Garrison | Garrison Relay disabled 8179 | -7/Garrison | Lost 5 parts (1p2n2u) 8361 | -7/Garrison | Triggered checkpoint 8452 | -7/Garrison | Triggered checkpoint 8453 | -7/Garrison | Build established: Mutant 8533 | -7/Garrison | Triggered checkpoint 8556 | -7/Garrison | Discovered exit to Factory (range 15) 8575 | -7/Garrison | Expanded RIF knowledge: Threat Obfuscation 8603 | -7/Garrison | Entered Factory 8603 | -6/Factory | Evolved 2 slots: Utility x1, Weapon x1 9139 | -6/Factory | Gui. Plasma Cannon suddenly broke down 9331 | -6/Factory | Discovered new exit (range 11) 10193 | -6/Factory | Discovered new exit (range 13) 10217 | -6/Factory | Gui. Plasma Cannon suddenly broke down 10615 | -6/Factory | Learned Hub_04(d) security intel 10637 | -6/Factory | Build established: Scavenger-Mutant 10644 | -6/Factory | Discovered new exit (range 15) 10668 | -6/Factory | Repaired Gravmag Array? 10674 | -6/Factory | Learned location of 1 exit from Proximity Caves 10721 | -6/Factory | Learned location of 1 exit from Upper Caves 10758 | -6/Factory | Learned Factory stockpile data 10805 | -6/Factory | Identified exit to Lower Caves 10862 | -6/Factory | Loaded intel: 4 scanalyzer locations 10877 | -6/Factory | Lost 4 parts (1p1n1u1w) 11325 | -6/Factory | Gui. Plasma Cannon suddenly broke down 11332 | -6/Factory | Learned location of Proximity Caves (-3) 11383 | -6/Factory | Learned Extension emergency access door positions 11424 | -6/Factory | Learned location of 2 exits from Archives 11456 | -6/Factory | Learned location of 1 exit from Lower Caves 11477 | -6/Factory | Loaded intel: 90 trap records 11488 | -6/Factory | Learned 2 Proximity Caves zone layouts 11507 | -6/Factory | Learned Hub_04(d) stockpile data 11535 | -6/Factory | Identified exit to Factory 11631 | -6/Factory | Gui. Plasma Cannon suddenly broke down 11806 | -6/Factory | Core integrity fell below 50% 11876 | -6/Factory | Gui. Plasma Cannon suddenly broke down 11882 | -6/Factory | Lost 8 parts (1p2n2u3w) 12105 | -6/Factory | Gui. Plasma Cannon suddenly broke down 12124 | -6/Factory | Gui. Plasma Cannon suddenly broke down 12325 | -6/Factory | Lost 3 parts (1p1n1w) 12371 | -6/Factory | Repaired Gauss Rifle+ 12455 | -6/Factory | Lost 3 parts (2p1w) 12885 | -6/Factory | Gui. Plasma Cannon suddenly broke down 12974 | -6/Factory | Discovered new exit (range 6) 13141 | -6/Factory | Discovered exit to Factory (range 18) 13267 | -6/Factory | Discovered new exit (range 10) 13756 | -6/Factory | Core integrity fell below 20% 13847 | -6/Factory | Gui. Plasma Cannon suddenly broke down 13917 | -6/Factory | Lost 3 allies 13925 | -6/Factory | Gui. Plasma Cannon suddenly broke down 14313 | -6/Factory | Build established: Scavenger-Tank 14637 | -6/Factory | Entered another Factory area 14637 | -5/Factory | Evolved 2 slots: Propulsion x2 14832 | -5/Factory | Identified exit to Upper Caves 15673 | -5/Factory | Learned 4 Research zone layouts 15738 | -5/Factory | Learned location of 2 exits from Upper Caves 15793 | -5/Factory | Identified exit to Factory 15840 | -5/Factory | Learned Quarantine security intel 15877 | -5/Factory | Learned Research recycling unit intel 15905 | -5/Factory | Learned location of 1 exit from Extension 15942 | -5/Factory | Learned Testing security intel 15989 | -5/Factory | Learned location of Armory (-4) 16047 | -5/Factory | Learned location of Quarantine (-2) 16088 | -5/Factory | Discovered exit to Factory (range 8) 16138 | -5/Factory | Sucked down chute 16138 | -5/Factory | Entered Waste 16138 | -5/Waste | The area was eerily silent 16167 | -5/Waste | Found Damper Plating 16204 | -5/Waste | Discovered new exit (range 13) 16210 | -5/Waste | Entered Factory 16411 | -5/Factory | Build established: Hacker-Mutant 16566 | -5/Factory | Fabricated Graphene Brace? 16575 | -5/Factory | Spotted B-75 Beast 16924 | -5/Factory | Discovered exit to Factory (range 15) 17014 | -5/Factory | System corruption reached 10% 17053 | -5/Factory | Build established: Hacker-Skirmisher 17054 | -5/Factory | Discovered exit to Factory (range 13) 17138 | -5/Factory | Learned location of 1 exit from Proximity Caves 17179 | -5/Factory | Learned Quarantine garrison access intel 17212 | -5/Factory | Learned Research emergency access door positions 17289 | -5/Factory | Learned 8 Testing zone layouts 17451 | -5/Factory | Build established: Hacker-Mutant 17487 | -5/Factory | Fabricated Gui. EMP Blaster (x1) 17619 | -5/Factory | Destroyed 8 combat bots 17723 | -5/Factory | Unchained authorized (6S-H0T) 17763 | -5/Factory | Exiles provided nearest exit location to -4/Factory 17943 | -5/Factory | Lost 5 parts (1p1n3u) 17987 | -5/Factory | Lost 3 parts (1p1n1w) 18118 | -5/Factory | Core integrity fell below 50% 18131 | -5/Factory | Found Prototype Ballistic Gun 18131 | -5/Factory | Identified 6S-H0T's Six Shooter 18155 | -5/Factory | Lost 3 parts (1p2n) 18410 | -5/Factory | Lost 4 parts (1n1u2w) 18564 | -5/Factory | Lost 3 parts (1n2u) 18803 | -5/Factory | Destroyed 6S-H0T 19002 | -5/Factory | Fabricated Gui. EMP Blaster (x1) 19256 | -5/Factory | Build established: Scavenger-Mutant 19510 | -5/Factory | First assault squad dispatched 20327 | -5/Factory | Build established: Scavenger-Sprinter 20722 | -5/Factory | Destroyed 12 combat bots 21330 | -5/Factory | Discovered exit to Upper Caves (range 12) 21394 | -5/Factory | Central database locked down 21459 | -5/Factory | Core integrity fell below 20% 21798 | -5/Factory | Repaired Imp. Trap Scanner? 21856 | -5/Factory | Build established: Scavenger-Mutant 21959 | -5/Factory | Found Prototype Launcher 21959 | -5/Factory | Identified Tesla Bomb Launcher 22267 | -5/Factory | Sterilization system engaged 22267 | -5/Factory | Non-combat units ordered to evacuate 22367 | -5/Factory | Combat units ordered to evacuate 22567 | -5/Factory | Ambient heat levels rising (+10) 22572 | -5/Factory | Discovered exit to Factory (range 4) 22717 | -5/Factory | Ambient heat levels rising (+10) 22867 | -5/Factory | Ambient heat levels rising (+10) 22981 | -5/Factory | Entered Upper Caves 22982 | -5/Upper Caves | Identified exit to Upper Caves 23016 | -5/Upper Caves | Spotted B-75 Beast 23072 | -5/Upper Caves | Found DCF Scrap (14 items) 23157 | -5/Upper Caves | Entered another Upper Caves area 23158 | -5/Upper Caves | Identified exit to Zhirov 23160 | -5/Upper Caves | Entered Factory 23160 | -4/Factory | Evolved 2 slots: Utility x2 23185 | -4/Factory | Garrison activated, responded to threat 23304 | -4/Factory | Discovered new exit (range 8) 23373 | -4/Factory | Repaired Antigrav System+ 23449 | -4/Factory | Build established: Hacker-Mutant 23463 | -4/Factory | Repaired Prc. Energy Filter 23484 | -4/Factory | Discovered new exit (range 10) 23558 | -4/Factory | Discovered new exit (range 11) 23659 | -4/Factory | Learned Research terminal intel 23731 | -4/Factory | Found Prototype Hackware 23733 | -4/Factory | Unchained authorized (QV-33N) 23737 | -4/Factory | Identified Exp. System Shield 23739 | -4/Factory | Learned location of 1 exit from Quarantine 23762 | -4/Factory | Identified exit to Research 23776 | -4/Factory | Learned Armory interactive machine intel 23782 | -4/Factory | Learned Research trap positions 23783 | -4/Factory | Learned 2 Proximity Caves zone layouts 23801 | -4/Factory | Loaded intel: 279 machine locations 23885 | -4/Factory | Identified exit to Garrison 23889 | -4/Factory | Entered Garrison 23901 | -4/Garrison | Triggered checkpoint 23917 | -4/Garrison | Found embedded Infiltrators 23927 | -4/Garrison | Garrison Relay disabled 23960 | -4/Garrison | Triggered checkpoint 24031 | -4/Garrison | Destroyed 8 combat bots 24052 | -4/Garrison | Triggered checkpoint 24148 | -4/Garrison | Discovered new exit (range 3) 24165 | -4/Garrison | Garrison Relay disabled 24232 | -4/Garrison | Discovered new exit (range 9) 24298 | -4/Garrison | Garrison Relay disabled 24332 | -4/Garrison | Triggered checkpoint 24363 | -4/Garrison | Learned Factory security intel 24363 | -4/Garrison | Discovered new exit (range 25) 24363 | -4/Garrison | Discovered new exit (range 19) 24363 | -4/Garrison | Discovered new exit (range 52) 24378 | -4/Garrison | Expanded RIF knowledge: Signal Jamming 24490 | -4/Garrison | Entered Factory 24490 | -4/Factory | Accompanied by 2 allies 24491 | -4/Factory | Identified exit to Armory 24507 | -4/Factory | Spotted B-86 Titan 24514 | -4/Factory | Found Imp. Powered Armor 24767 | -4/Factory | Found Exp. Hacking Suite 24808 | -4/Factory | Central database locked down 24934 | -4/Factory | Discovered exit to Research (range 6) 25061 | -4/Factory | Build established: Wizard-Mutant 25288 | -4/Factory | Discovered new exit (range 4) 25484 | -4/Factory | Fabricated Gui. EMP Blaster (x1) 25702 | -4/Factory | Loaded intel: 88 trap records 25742 | -4/Factory | Learned Testing emergency access door positions 25744 | -4/Factory | Identified exit to Upper Caves 25745 | -4/Factory | Learned 4 Testing zone layouts 25752 | -4/Factory | Learned Research stockpile data 25769 | -4/Factory | Learned 4 Upper Caves zone layouts 25784 | -4/Factory | Garrison activated, responded to threat 26410 | -4/Factory | Identified exit to Garrison 26444 | -4/Factory | Repaired Prc. Energy Filter? 26505 | -4/Factory | Repaired Gui. EMP Blaster 26546 | -4/Factory | Garrison activated, responded to threat 27043 | -4/Factory | Build established: Hacker-Mutant 27157 | -4/Factory | Learned Research trap positions 27176 | -4/Factory | Destroyed 8 combat bots 27197 | -4/Factory | Repaired Gravmag Array+ 27219 | -4/Factory | Learned Testing trap positions 27231 | -4/Factory | Fabricated Launcher Loader (x2) 27347 | -4/Factory | Learned Quarantine trap positions 27372 | -4/Factory | Learned location of 1 exit from Quarantine 27451 | -4/Factory | Learned Research terminal intel 27499 | -4/Factory | Learned location of 3 exits from Research 27740 | -4/Factory | First assault squad dispatched 27956 | -4/Factory | Repaired Enh. Nuclear Core 28260 | -4/Factory | Destroyed 8 combat bots 28810 | -4/Factory | Spotted B-86 Titan 28944 | -4/Factory | Garrison activated, responded to threat 29086 | -4/Factory | Repaired Gravmag Array+? 29452 | -4/Factory | Garrison activated, responded to threat 29471 | -4/Factory | Sterilization system engaged 29471 | -4/Factory | Non-combat units ordered to evacuate 29501 | -4/Factory | Destroyed 12 combat bots 29571 | -4/Factory | Combat units ordered to evacuate 29771 | -4/Factory | Ambient heat levels rising (+10) 29921 | -4/Factory | Ambient heat levels rising (+10) 30044 | -4/Factory | Found Quantum Capacitor 30071 | -4/Factory | Ambient heat levels rising (+10) 30221 | -4/Factory | Ambient heat levels rising (+10) 30232 | -4/Factory | Entered Armory 30233 | -4/Armory | Loaded intel: 27 interactive machine locations 30999 | -4/Armory | Unchained authorized (DW-4LL) 31039 | -4/Armory | Exiles provided nearest exit location to -3/Research 31337 | -4/Armory | Fabricated Imp. Armor Integrity Analyzer (x2) 31621 | -4/Armory | Destroyed DW-4LL 31624 | -4/Armory | Found Prototype Device 31869 | -4/Armory | Unchained authorized (CL-0N3) 32134 | -4/Armory | Spotted Quarantine Guard 32632 | -4/Armory | Entered Research 32632 | -3/Research | Evolved 2 slots: Power x1, Propulsion x1 32633 | -3/Research | Identified exit to Research 32633 | -3/Research | Identified exit to Testing 32635 | -3/Research | Loaded intel: 103 trap records 32638 | -3/Research | Loaded intel: 23 terminal locations 32639 | -3/Research | Loaded intel: 5 recycling unit locations 32851 | -3/Research | Unchained authorized (CL-0N3) 32892 | -3/Research | Repaired Broken Gui. EMP Blaster 32949 | -3/Research | Repaired Broken Prc. Energy Filter 33074 | -3/Research | Identified exit to Garrison 33074 | -3/Research | Entered Garrison 33085 | -3/Garrison | Discovered exit to Research (range 43) 33085 | -3/Garrison | Discovered exit to Research (range 50) 33085 | -3/Garrison | Discovered exit to Research (range 70) 33085 | -3/Garrison | Discovered new exit (range 66) 33114 | -3/Garrison | Triggered checkpoint 33125 | -3/Garrison | Triggered checkpoint 33183 | -3/Garrison | Found embedded Infiltrators 33208 | -3/Garrison | Q-Series assembled to engage unique threat in Research 33227 | -3/Garrison | Spotted B-86 Titan 33257 | -3/Garrison | Expanded RIF knowledge: Structural Interface 33270 | -3/Garrison | Lost 4 parts (1p2u1w) 33272 | -3/Garrison | Entered Research 33272 | -2/Research | Evolved 2 slots: Utility x2 33273 | -2/Research | Loaded intel: 69 trap records 33274 | -2/Research | Loaded intel: 22 terminal locations 33620 | -2/Research | Lost 6 parts (1p3u2w) 33654 | -2/Research | Identified exit to Garrison 33654 | -2/Research | Entered Garrison 33690 | -2/Garrison | Garrison Relay disabled 33892 | -2/Garrison | Triggered checkpoint 34081 | -2/Garrison | Spotted B-90 Cyclops 34268 | -2/Garrison | Lost 3 parts (2n1u) 34324 | -2/Garrison | Lost 9 parts (1p3n2u3w) 34401 | -2/Garrison | Core integrity fell below 50% 34437 | -2/Garrison | Destroyed B-90 Cyclops 34676 | -2/Garrison | Triggered checkpoint 34753 | -2/Garrison | Discovered new exit (range 52) 34753 | -2/Garrison | Discovered new exit (range 51) 34753 | -2/Garrison | Discovered new exit (range 47) 34807 | -2/Garrison | Triggered checkpoint 35083 | -2/Garrison | Build established: Scavenger-Skirmisher 35089 | -2/Garrison | Garrison Relay disabled 35108 | -2/Garrison | Triggered checkpoint 35124 | -2/Garrison | Garrison Relay disabled 35154 | -2/Garrison | Found embedded Infiltrators 35216 | -2/Garrison | Triggered checkpoint 35284 | -2/Garrison | Triggered checkpoint 35310 | -2/Garrison | Lost 4 allies 35339 | -2/Garrison | Core integrity fell below 20% 35353 | -2/Garrison | Expanded RIF knowledge: Autooverride 35357 | -2/Garrison | Entered Research 35370 | -2/Research | Lost 21 parts (2p5n11u3w) 35377 | -2/Research | Identified exit to DSF 35434 | -2/Research | Identified exit to Garrison 35434 | -2/Research | Entered Garrison 35440 | -2/Garrison | Discovered new exit (range 77) 35440 | -2/Garrison | Discovered new exit (range 91) 35440 | -2/Garrison | Discovered new exit (range 54) 35442 | -2/Garrison | Triggered checkpoint 35454 | -2/Garrison | Spotted B-90 Cyclops 35474 | -2/Garrison | Triggered checkpoint 35478 | -2/Garrison | Expanded RIF knowledge: Command Fork 35482 | -2/Garrison | Entered Access 35482 | -1/Access | Evolved 2 slots: Propulsion x2 35690 | -1/Access | Lost 8 parts (4n4u) 35708 | -1/Access | Core integrity fell below 50% 35725 | -1/Access | Lost 3 parts (1p2n) 35855 | -1/Access | Energy Cycler disabled 35868 | -1/Access | Discovered new exit (range 6) 35870 | *** | Escaped! Last Messages --------------- 35855_ Destroyed Xenon Bombardment Thruster. 35856_ U-05 Engineer builds a Wall. 35857_ Slug penetrates Wall. 35857_ Slug penetrates H-88 Terminator. 35857_ H-88 Terminator suffers critical hit (Destroy). 35857_ H-88 Terminator destroyed. 35859_ Mini Drone retrieved by Mni. Drone Bay (repair cost: 2). 35860_ Mini Drone released from Mni. Drone Bay. 35860_ Xenon Bombardment Thruster destroyed. 35861_ Mini Drone released from Mni. Drone Bay. 35862_ K-01 Serf cleans the Terminal. 35866_ P-80 Master resets A-15 Conveyor, system corruption cleaned. 35867_ Terminal disabled. 35867_ K-01 Serf collects debris. 35868_ The Access Shell folds into the floor. 35868_ EXIT=FOUND [Achievement: Death Machine] Map ----- +----------------------------------------------------+ | ??# ##[ ############?????????????????????????? | | ??# ## # ! ##?????????????????????????? | | ??# ## # ##?????????????????????????? | | ### ####+#### # ?????????????????????????? | | ### #### / !# ?????????????????????????? | | # ## # # ???????????????????? | | ## # " " + ???????????????????? | | # "T" # ###???????????????????? | | ! ## # """ # ###???????????????????? | | # ## ########### ? ##????????????????????? | | ###+#### ######## ?? ????????????????????? | | #######?????????????? ???????????????????? | | #######??????????????? ???????????????????? | | ! =###???????????????????????????????????????? | | ! ##????????????BB????BB????????????????????? | | !] ####??????????BB????BB????????????????????? | | ###########?????????????????????????????g????????? | | ""T""" ##?????????????????????????????g????????? | | "" """ ##??????????????????????????????????????? | | ##???????##"????????"##?????????????????? | | ##???????##""""""""""##?????????????????? | | """""" ########### ##?????????????????? | | """""" ########### ##?????????????????? | | """""" ## ### ##?????????????????? | | """""" ## ### "" ##?????????????????? | | """""" ## ### "@ ##?????????????????? | | ## ### ##?????????????????? | | ## ### ##?????????????????? | | ## ### ###????????????????? | | ########### ### ###????????????????? | | ########### ## ##????????????????? | | ?????????## ###" ###????????????????? | | ?????????## ###"" ###????????????????? | | ?????????## ###"" nn ##?????????????????? | | ?????????## ###T ##?????????????????? | | ?????????## ###"" ##?????????????????? | | ########### ###" s ##?????????????????? | | ##############/#####""k ####???????????????? | | kk p ??????????? | | s s p p "????????? | | ################################ ???????? | | ################################??????????? | | ##????????????????????????????????????????? | | ##????????????????????????????????????????? | | ##????????????????????????????????????????? | | ##????????????????????????????????????????? | | # ????????????????????????????????????????? | | # ????????????????????????????????????????? | | # ????????????????????????????????????????? | | # ????????????????????????????????????????? | +----------------------------------------------------+ Best States ------------- Heat Dissipation 125 Energy Generation 55 Energy Capacity 465 Matter Stores 300 Matter Capacity 300 Sight Range 18 Terrain Scan Range 14 Terrain Scan Density 10 Cloak Strength 4 Power Amplification 20 Base Temperature (-) 200 EM Shielding 3 Armor Coverage 400 Resistance: KI 25 Resistance: TH 15 Propulsion Shielding 90 Utility Shielding 33 Weapon Shielding 66 Phase Shifting 15 Evasion (%) 72 Targeting Accuracy 5 Target Analysis 6 Armor Integrity Analysis 40 Recoil Reduction 6 Energy Filtering 50 Offensive Hacking 44 Defensive Hacking 30 Relay Coupler Types 2 Relay Coupler Value 51 Authchip Count 2 Trap Extractor Capacity 8 Item Schematics ----------------- Titanium Leg | -8/Materials | Scanalyzed Carbon-fiber Leg | -8/Materials | Scanalyzed Quantum Capacitor | -6/Factory | Hacked Impulse Thruster Array | -5/Factory | Hacked Gui. EMP Blaster | -5/Factory | Hacked Imp. Gyrokinetic Inverter | -5/Factory | Hacked Launcher Loader | -5/Factory | Hacked Exp. Propulsion Shielding | -5/Factory | Scanalyzed Antigrav Array | -4/Factory | Hacked Exp. System Shield | -4/Factory | Scanalyzed Exp. Reaction Control System | -4/Factory | Scanalyzed Adv. Cooling System | -4/Factory | Scanalyzed Hyp. Coil Gun | -4/Factory | Scanalyzed Adv. Hacking Suite | -4/Factory | Scanalyzed Graphene Brace | -4/Factory | Hacked Imp. Armor Integrity Analyzer | -4/Armory | Hacked Cmb. Linear Gravjet | -4/Armory | Hacked Prc. Energy Filter | -3/Research | Scanalyzed Robot Schematics ------------------ None Fabricated ------------ Graphene Brace | x2 | -5/Factory | Preloaded Gui. EMP Blaster | x1 | -5/Factory | Authchip Gui. EMP Blaster | x1 | -5/Factory | Authchip Gui. EMP Blaster | x1 | -4/Factory | Authchip Launcher Loader | x2 | -4/Factory Imp. Armor Integrity Analyzer | x2 | -4/Armory | Authchip Repaired ---------- Aluminum Leg | 43% | -10/Materials Recalibrator | 24% | -7/Factory Gravmag Array | 11% | -6/Factory Gauss Rifle | 6% | -6/Factory Imp. Trap Scanner | 4% | -5/Factory Antigrav System | 1% | -4/Factory Prc. Energy Filter | 31% | -4/Factory Prc. Energy Filter | 35% | -4/Factory Gui. EMP Blaster | 26% | -4/Factory Gravmag Array | 37% | -4/Factory Enh. Nuclear Core | 16% | -4/Factory Gravmag Array | 52% | -4/Factory Gui. EMP Blaster | 1% | -3/Research | Broken Prc. Energy Filter | 11% | -3/Research | Broken Studied --------- Titanium Leg | -8/Materials | Hacked Aluminum Leg | -8/Materials | Hacked Carbon-fiber Leg | -8/Materials | Hacked Imp. Carbon-fiber Leg | -7/Factory | Hacked Gauss Rifle | -7/Factory | Hacked Gravmag Array | -6/Factory | Hacked Gravmag System | -6/Factory | Hacked Antigrav System | -5/Factory | Hacked Gyrokinetic Inverter | -4/Factory | Hacked Imp. Gravmag System | -4/Factory | Hacked Adv. Surge Thruster | -1/Access | Hacked Enh. Quantum Rifle | -1/Access | Hacked Alien Tech Used ----------------- None Achievements -------------- Death Machine Zeroed Repercussions Challenges ------------ None Game ------ Seed ModifiedCargoDriveblaster Manual? 0 Play Time 11:59:07 Cumulative 777.8 hours Start 2025.12.10 @ 17:18:32 End 2025.12.12 @ 14:56:32 Sessions 9 Manual Loads 0 Difficulty Rogue Special Mode None Game No. 322 Rogue 322 Adventurer 0 Explorer 0 Win Type 0 Total 83 Types 43/5/14/6/6/1/1/3/0/4 Lore% 97 Gallery% 90 Achievement% 83 Wizard Run 0 Options --------- Layout 1 ASCII 0 Keyboard 0 Movement Numpad Keybinds 0 Fullscreen 1 Font 24/Smallcaps Map View 50x35 Zoom Use 0% Tactical HUD 1 Map Filters NONE Filters NONE Steam 1 RUN: f7c03c5e-8f57-4e1b-92b0-e6ed120c6248